Workbook

Sheet Planner
A1: Recept 53 | C1: < Naam Bier | F1: Beslagdikte in L/kg > | G1: 4 | H1: =IF(mashfactor>4.5,0,(5-mashfactor)/2.2) -> 0.4545454545 | J1: Brouwdatum > | K1: 2015-09-02 | S1: EBC | T1: R | U1: G | V1: B | W1: A | Y1: EBC | AA1: Info over de gekozen gist: Naam > | AB1: =HoofdGist -> Danstar Belle Saison
A2: Saison | C2: < Type bier | F2: "Extract Efficiëntie" > | G2: 0.77 | J2: Botteldatum > | K2: 2015-09-12 | S2: 0 | T2: 255 | U2: 255 | V2: 255 | W2: 0 | Y2: =$F$26 -> 10.62196403 | AA2: =G3 -> Belgische Saisongist
A3: Gewenste liters bier > | B3: 10 | C3: Gist >> | D3: Danstar Belle Saison | G3: =VLOOKUP(HoofdGist,'Info-Tabellen'!$X:$AC,5,0) -> Belgische Saisongist | S3: 1 | T3: 247 | U3: 249 | V3: 180 | W3: 45
A4: Vast verlies installatie > | B4: 1 | F4: ketelinvloed (vaste parameter) > | G4: 99.5 | J4: Totale kooktijd > | K4: 90 | L4: =IF(Aardbier="D",-0.5,IF(Aardbier="M",-0.3,IF(Aardbier=1,-0.8,2.5))) -> -0.5 | S4: 2 | T4: 245 | U4: 248 | V4: 146 | W4: 61 | Y4: R | AA4: Info over de bottelgist: Naam > | AB4: =K53 -> 0
A5: Kies een Maischprofiel > | B5: D | D5: eiwitrust J/N ? > | E5: N | G5: % verkoken/uur> | H5: 10 | I5: =VLOOKUP(HoofdGist,'Info-Tabellen'!$X:$AB,2,0) -> 91 | J5: =SUM($D$8:$D$18) -> 2.408285714 | K5: =IF(Eiwitrust="J",10,0) -> 0 | L5: =(totplato-VSPrestextract)/(2.0665-0.010665*(totplato)) -> 5.965029708 | S5: 3 | T5: 248 | U5: 249 | V5: 114 | W5: 75 | Y5: =LOOKUP($Y$2,$S$2:$S$48,T2:T48) -> 224 | AA5: =VLOOKUP(bottelgist,'Info-Tabellen'!$X:$AB,5,0) -> 
A6: Geef opslagtemperatuur mout > | B6: 20 | F6: na beslagcorrectie op Extract Effic.> | G6: =IF(mashfactor<3.66,$G$2-((mashfactor)/1000)+0.00666,$G$2-((mashfactor)/20)+0.175) -> 0.745 | I6: =IF(moutkilos=0,"",IF(Aardbier=1,moutkilos*1.6*($B$30-mouttemp)/(mashwater*4.18),moutkilos*1.6*($B$29-mouttemp)/(mashwater*4.18))) -> 3.940332114 | K6: â te verwachten na koken â | O6: =VLOOKUP(HoofdGist,'Info-Tabellen'!$X:$AB,3,0) -> 107.5 | P6: ter info | S6: 4 | T6: 248 | U6: 247 | V6: 83 | W6: 90 | AE6: 123456789
A7: Grondstoffen | B7: Opbrengst | C7: EBC-kleur | D7: kg â | E7: °PLATO | F7: EBC | G7: %Gew. | H7: %Stort | I7: FG | J7: =SUM($E$8:$E$18) -> 12.71376332 | K7: =(1+($J$7/(258.6-0.87955*$J$7)))*1000 -> 1051.385847 | L7: =IF(ISNUMBER($J$7),$J$7*1.035,"") -> 13.15874503 | N7: gist factor | O7: SVG | P7: LoviBond | Q7: EBC | S7: 5 | T7: 245 | U7: 248 | V7: 48 | W7: 121 | Y7: G
A8: Pilsmout 3 | B8: =VLOOKUP(A8,'Info-Tabellen'!$H:$K,2,0) -> 80.07 | C8: =VLOOKUP(A8,'Info-Tabellen'!$H:$K,3,0) -> 3 | D8: =3.97/21*Gewenste_liters*112% -> 2.117333333 | E8: =IF(Gewenste_liters=0,"0",IF(D8=0," ",(B8*D8/(Gewenste_liters+hopverlies))*effic)) -> 11.23268199 | F8: =IF(Gewenste_liters=0,"0",IF(D8=0," ",1.8*(Q8)^0.69)) -> 5.261003261 | G8: =IF(D8=""," ",(D8*100/Totaalkg)) -> 79.87927565 | H8: =IF(E8=" "," ",(E8*100/totplato)) -> 75.54249363 | I8: =IF(O8=0,"",E8-(E8*O8/100)) -> 1.005835614 | J8: te verwachten uit suikers en | N8: =IF(D8=0,0,VLOOKUP(A8,'Info-Tabellen'!$H:$K,4,0)) -> 100 | O8: =IF(N8=0,0,(SVGopmout*N8/100)-ATNfactor-Aftrokmaische) -> 91.04545455 | P8: =IF(C8=0,0,C8*0.3748+0.6) -> 1.7244 | Q8: =D8*C8/Gewenste_liters*effic*10 -> 4.73224 | S8: 6 | T8: 245 | U8: 244 | V8: 18 | W8: 137 | Y8: =LOOKUP($Y$2,$S$2:$S$48,U2:U48) -> 204
A9: Munich mout 15 | B9: =VLOOKUP(A9,'Info-Tabellen'!$H:$J,2,0) -> 80.07 | C9: =VLOOKUP(A9,'Info-Tabellen'!$H:$J,3,0) -> 15 | D9: =(0.255+0.051)/21*Gewenste_liters -> 0.1457142857 | E9: =IF(Gewenste_liters=0,"0",IF(D9=0," ",(B9*D9/(Gewenste_liters+hopverlies))*effic)) -> 0.7730300216 | F9: 2.519879497 | G9: 5.49726933 | H9: 5.198813209 | I9: 0.06922132466 | J9: â extracten â | N9: =IF(D9=0,0,VLOOKUP(A9,'Info-Tabellen'!$H:$K,4,0)) -> 100 | O9: 91.04545455 | P9: =IF(C9=0,0,C9*0.3748+0.6) -> 6.222 | Q9: =D9*C9/Gewenste_liters*effic*10 -> 1.628357143 | S9: 7 | T9: 238 | U9: 233 | V9: 22 | W9: 135 | AA9: Info over de gekozen hopsoorten: (A) = aroma (B) = Bitter (U) = Universeel
A10: Tarwevlokken | B10: =VLOOKUP(A10,'Info-Tabellen'!$H:$J,2,0) -> 73.58 | C10: =VLOOKUP(A10,'Info-Tabellen'!$H:$J,3,0) -> 4 | D10: =0.305/21*Gewenste_liters -> 0.1452380952 | E10: 0.7080513065 | F10: 1.009990533 | G10: 5.479304398 | H10: 4.761815689 | I10: 0.06340277608 | J10: =SUM($E$19:$E$22) -> 2.155592259 | K10: =(1+($J$10/(258.6-0.87955*$J$10)))*1000 -> 1008.397188 | L10: =IF(ISNUMBER($J$10),$J$10,"") -> 2.155592259 | N10: =IF(D10=0,0,VLOOKUP(A10,'Info-Tabellen'!$H:$K,4,0)) -> 100 | O10: 91.04545455 | P10: 2.0992 | Q10: 0.4328095238 | S10: 8 | T10: 230 | U10: 225 | V10: 24 | W10: 160 | Y10: B | AA10: =_hop1 -> Styrian Golding (A)
A11: - - Kies mout of graan - - | B11: =VLOOKUP(A11,'Info-Tabellen'!$H:$J,2,0) -> 0 | C11: =VLOOKUP(A11,'Info-Tabellen'!$H:$J,3,0) -> 0 | K11: â te verwachten totaal â | N11: =IF(D11=0,0,VLOOKUP(A11,'Info-Tabellen'!$H:$K,4,0)) -> 0 | O11: 0 | P11: 0 | Q11: 0 | S11: 9 | T11: 229 | U11: 214 | V11: 30 | W11: 163 | Y11: =LOOKUP($Y$2,$S$2:$S$48,V2:V48) -> 32 | AA11: =VLOOKUP(_hop1,'Info-Tabellen'!$R:$V,3,0) -> Delicaat, iets pikant en grasachtig/bloemig. Zeer populair vanwege karakteristieke aroma en gemiddelde alpha waarden
A12: - - Kies mout of graan - - | B12: =VLOOKUP(A12,'Info-Tabellen'!$H:$J,2,0) -> 0 | C12: =VLOOKUP(A12,'Info-Tabellen'!$H:$J,3,0) -> 0 | J12: =IF(ISNUMBER(totplato),totplato,"") -> 14.86935557 | K12: =(1+(totplato/(258.6-0.87955*totplato)))*1000 -> 1060.562297 | L12: =IF(ISNUMBER($J$12),$L$7+$L$10,"") -> 15.31433729 | N12: =IF(D12=0,0,VLOOKUP(A12,'Info-Tabellen'!$H:$K,4,0)) -> 0 | O12: 0 | P12: 0 | Q12: 0 | S12: 10 | T12: 224 | U12: 204 | V12: 32 | W12: 165
A13: - - Kies mout of graan - - | B13: =VLOOKUP(A13,'Info-Tabellen'!$H:$J,2,0) -> 0 | C13: =VLOOKUP(A13,'Info-Tabellen'!$H:$J,3,0) -> 0 | K13: â voorspelling eind SG | N13: =IF(D13=0,0,VLOOKUP(A13,'Info-Tabellen'!$H:$K,4,0)) -> 0 | O13: 0 | P13: 0 | Q13: 0 | S13: 11 | T13: 218 | U13: 196 | V13: 41 | W13: 168 | Y13: A
A14: - - Kies mout of graan - - | B14: =VLOOKUP(A14,'Info-Tabellen'!$H:$J,2,0) -> 0 | C14: =VLOOKUP(A14,'Info-Tabellen'!$H:$J,3,0) -> 0 | J14: =voorsp_eindplato -> 0.9767902956 | K14: =voorsp_eindSG -> 1003.281934 | L14: - - - - | N14: =IF(D14=0,0,VLOOKUP(A14,'Info-Tabellen'!$H:$K,4,0)) -> 0 | O14: 0 | P14: 0 | Q14: 0 | S14: 12 | T14: 212 | U14: 184 | V14: 39 | W14: 170 | Y14: =LOOKUP($Y$2,$S$2:$S$48,W2:W48) -> 165 | AA14: =_hop2 -> Styrian Golding (A)
A15: - - Kies mout of graan - - | B15: =VLOOKUP(A15,'Info-Tabellen'!$H:$J,2,0) -> 0 | C15: =VLOOKUP(A15,'Info-Tabellen'!$H:$J,3,0) -> 0 | J15: =SUM(I8:I18) -> 1.138459715 | K15: <Gr FG Skr> | L15: =SUM(I19:I23) -> -0.1616694194 | N15: =IF(D15=0,0,VLOOKUP(A15,'Info-Tabellen'!$H:$K,4,0)) -> 0 | O15: 0 | P15: 0 | Q15: 0 | S15: 13 | T15: 208 | U15: 176 | V15: 46 | W15: 173 | AA15: =VLOOKUP(_hop2,'Info-Tabellen'!$R:$V,3,0) -> Delicaat, iets pikant en grasachtig/bloemig. Zeer populair vanwege karakteristieke aroma en gemiddelde alpha waarden
A16: - - Kies mout of graan - - | B16: =VLOOKUP(A16,'Info-Tabellen'!$H:$J,2,0) -> 0 | C16: =VLOOKUP(A16,'Info-Tabellen'!$H:$J,3,0) -> 0 | K16: Nodige Gist: | L16: =VLOOKUP(HoofdGist,'Info-Tabellen'!$X:$AC,6,0) -> k | N16: =IF(D16=0,0,VLOOKUP(A16,'Info-Tabellen'!$H:$K,4,0)) -> 0 | O16: 0 | P16: 0 | Q16: 0 | S16: 14 | T16: 202 | U16: 167 | V16: 52 | W16: 175 | Y16: RGB_set
A17: - - Kies mout of graan - - | B17: =VLOOKUP(A17,'Info-Tabellen'!$H:$J,2,0) -> 0 | C17: =VLOOKUP(A17,'Info-Tabellen'!$H:$J,3,0) -> 0 | G17: =IF(D17=""," ",(D17*100/Totaalkg)) ->  | H17: =IF(E17=" "," ",(E17*100/totplato)) ->  | J17: =IF(L16="k",INT(Gewenste_liters/20*mashplato),"starter in stappen opkweken:") -> 6 | N17: =IF(D17=0,0,VLOOKUP(A17,'Info-Tabellen'!$H:$K,4,0)) -> 0 | O17: 0 | P17: 0 | Q17: 0 | S17: 15 | T17: 194 | U17: 156 | V17: 54 | W17: 178 | Y17: =SetRGB(Y5,Y8,Y11,Y14) -> 2149600
A18: CaraMunich (Cara 120) | B18: =VLOOKUP(A18,'Info-Tabellen'!$H:$J,2,0) -> 75 | C18: =VLOOKUP(A18,'Info-Tabellen'!$H:$J,3,0) -> 120 | J18: =IF(L16="k"," vooraf te","maken") -> vooraf te | K18: =IF(L16="k","rehydrateren",(INT(160*Starter/100))*90) -> rehydrateren | L18: =IF(L16="k","in water 25°","moutextract ") -> in water 25° | N18: =IF(D18=0,0,VLOOKUP(A18,'Info-Tabellen'!$H:$K,4,0)) -> 0 | O18: 0 | P18: 45.576 | Q18: 0 | S18: 16 | T18: 190 | U18: 147 | V18: 57 | W18: 180 | AA18: =_hop3 -> Saaz CZ (A)
A19: Kristalsuiker | B19: =VLOOKUP(A19,'Info-Tabellen'!$M:$O,2,0) -> 100 | C19: =VLOOKUP(A19,'Info-Tabellen'!$M:$O,3,0) -> 0.004500101328 | D19: =0.509/21*Gewenste_liters -> 0.2423809524 | E19: =IF(Gewenste_liters=0,"0",IF(D19=0," ",(B19*D19/(Gewenste_liters+hopverlies)))) -> 2.155592259 | F19: =IF(Gewenste_liters=0,"0",IF(D19=0," ",B19*D19/10/Gewenste_liters*C19)) -> 0.001090738846 | G19: 9.144150618 | H19: 14.49687747 | I19: -0.1616694194 | J19: =IF(L16="k","",INT(Starter*totplato/4)) ->  | K19: =IF(L16="k","","gistvoeding,") ->  | L19: =IF(L16="k","","koken in ") ->  | N19: =IF(D19=0,0,VLOOKUP(A19,'Info-Tabellen'!$M:$P,4,0)) -> 100 | O19: =IF(N19=0,0,(SVGopsuiker*N19/100)) -> 107.5 | P19: 0.601686638 | S19: 17 | T19: 193 | U19: 145 | V19: 59 | W19: 201 | AA19: =VLOOKUP(_hop3,'Info-Tabellen'!$R:$V,3,0) -> Koning van de pilshop. De enige hop die gebruikt wordt in het oorspronkelijke pils ter wereld: Pilsner Urquell.
A20: - - Kies suiker of extract - - | B20: =VLOOKUP(A20,'Info-Tabellen'!$M:$O,2,0) -> 0 | C20: =VLOOKUP(A20,'Info-Tabellen'!$M:$O,3,0) -> 0 | E20: =IF(Gewenste_liters=0,"0",IF(D20=0," ",(B20*D20/(Gewenste_liters+hopverlies)))) ->  | F20: =IF(Gewenste_liters=0,"0",IF(D20=0," ",B20*D20/10/Gewenste_liters*C20)) ->  | J20: =IF(L16="k","",Starter*1.05) ->  | K20: =IF(L16="k","","water =") ->  | L20: =IF(L16="k","",mashplato/2.5*Gewenste_liters/100) ->  | N20: =IF(D20=0,0,VLOOKUP(A20,'Info-Tabellen'!$M:$P,4,0)) -> 0 | O20: =IF(N20=0,0,(SVGopsuiker*N20/100)) -> 0 | P20: 0 | S20: 18 | T20: 192 | U20: 140 | V20: 61 | W20: 202
A21: - - Kies suiker of extract - - | B21: =VLOOKUP(A21,'Info-Tabellen'!$M:$O,2,0) -> 0 | C21: =VLOOKUP(A21,'Info-Tabellen'!$M:$O,3,0) -> 0 | E21: =IF(Gewenste_liters=0,"0",IF(D21=0," ",(B21*D21/(Gewenste_liters+hopverlies)))) ->  | F21: =IF(Gewenste_liters=0,"0",IF(D21=0," ",B21*D21/10/Gewenste_liters*C21)) ->  | K21: ±Nodige liters kookwort @100°Câ | N21: =IF(D21=0,0,VLOOKUP(A21,'Info-Tabellen'!$M:$P,4,0)) -> 0 | O21: =IF(N21=0,0,(SVGopsuiker*N21/100)) -> 0 | P21: 0 | S21: 19 | T21: 191 | U21: 135 | V21: 59 | W21: 204
A22: - - Kies suiker of extract - - | B22: =VLOOKUP(A22,'Info-Tabellen'!$M:$O,2,0) -> 0 | C22: =VLOOKUP(A22,'Info-Tabellen'!$M:$O,3,0) -> 0 | E22: =IF(Gewenste_liters=0,"0",IF(D22=0," ",(B22*D22/(Gewenste_liters+hopverlies)))) ->  | F22: =IF(Gewenste_liters=0,"0",IF(D22=0," ",B22*D22/10/Gewenste_liters*C22)) ->  | J22: @ 75°C > | K22: =($L$27+verlieswater)*1.03 -> 13.34981222 | L22: =($L$27+verlieswater)*1.04 -> 13.47942205 | N22: =IF(D22=0,0,VLOOKUP(A22,'Info-Tabellen'!$M:$P,4,0)) -> 0 | O22: =IF(N22=0,0,(SVGopsuiker*N22/100)) -> 0 | P22: 0 | S22: 20 | T22: 191 | U22: 130 | V22: 58 | W22: 205 | AA22: =_hop4 -> - - Kies hop - -
A23: - - Kies suiker of extract - - | B23: =VLOOKUP(A23,'Info-Tabellen'!$M:$O,2,0) -> 0 | C23: =VLOOKUP(A23,'Info-Tabellen'!$M:$O,3,0) -> 0 | E23: =IF(Gewenste_liters=0,"0",IF(D23=0," ",(B23*D23/(Gewenste_liters+hopverlies)))) ->  | F23: =IF(Gewenste_liters=0,"0",IF(D23=0," ",B23*D23/10/Gewenste_liters*C23)) ->  | K23: Totaal aantal L water brouwsel â | N23: =IF(D23=0,0,VLOOKUP(A23,'Info-Tabellen'!$M:$P,4,0)) -> 0 | O23: =IF(N23=0,0,(SVGopsuiker*N23/100)) -> 0 | P23: 0 | S23: 21 | T23: 191 | U23: 127 | V23: 56 | W23: 206 | AA23: =VLOOKUP(_hop4,'Info-Tabellen'!$R:$V,3,0) -> 0
A24: Clarimalt of Caramelkleur in gram! | B24: 100 | C24: 9000 | E24: - - - | F24: =IF(Gewenste_liters=0,"0",IF(D24=0," ",D24/Gewenste_liters*C24/1000)) ->  | G24: =IF(D24=""," ",(D24*0.1/Totaalkg)) ->  | J24: =0.1808*totplato+0.8192*voorsp_eindplato -> 3.488566098 | K24: =IF($L$10=0,1.035,$L$12/$J$12) -> 1.029926093 | L24: =IF((Gewenste_liters+(1.7*moutkilos)*1.2)<mashwater,mashwater+verkookwater,($K$22*1.18)+(moutkilos*0.75)) -> 17.55899271 | N24: 0 | O24: 0 | P24: 3373.8 | S24: 22 | T24: 193 | U24: 120 | V24: 56 | W24: 208
A25: Voorspellingen > > | C25: Totalen>> | D25: =SUM(D8:D23) -> 2.650666667 | E25: =SUM(E8:E24) -> 14.86935557 | F25: =SUM(F8:F24) -> 8.79196403 | G25: < TOT. EBC Kleur | I25: =SUM(I8:I23) -> 0.9767902956 | J25: << Voorspelling eind °Plato | S25: 23 | T25: 190 | U25: 116 | V25: 57 | W25: 209
D26: SG >> | E26: =StamwortSG -> 1060.562297 | F26: =IF(kleur=0,0,kleur+(1.22*Kooktijd/60)) -> 10.62196403 | G26: < EBC kookkleur | I26: =IF(voorsp_eindplato=0,1000,259/(259.12955-voorsp_eindplato)*1000) -> 1003.281934 | J26: << Voorspelling eind S.G. | S26: 24 | T26: 188 | U26: 112 | V26: 57 | W26: 225 | AA26: =_hop5 -> - - Kies hop - -
A27: Maischen  | G27: Voorspelling alcohol vóór bottelen ongeveer > | H27: =IF((totplato-VSPrestextract)/(2.0665-0.010665*totplato)=0,0,voorsp_eindSG/1000*VSPalcogewicht/0.794/100) -> 0.07537287835 | I27: volume | K27: Nodige wort bij 20°C > | L27: =Gewenste_liters*(1+VSPalcvol/4) -> 10.1884322 | S27: 25 | T27: 186 | U27: 106 | V27: 50 | W27: 225 | AA27: =VLOOKUP(_hop5,'Info-Tabellen'!$R:$V,3,0) -> 0
A28: Storten in > | B28: =moutkilos*mashfactor*1.02 -> 9.825805714 | C28: water van | D28: =IF(moutkilos=0,55,IF(Aardbier=1,($B$30+tempverlies)*ketelinvloed/100,($B$29+tempverlies)*ketelinvloed/100)) -> 65.61063045 | E28: â bierkleur â | I28: corrigeer pH na 10' (5,4-5,8) | S28: 26 | T28: 186 | U28: 101 | V28: 51 | W28: 226
A29: =IF(Aardbier=1,"éénstaps maisch,",IF(Eiwitrust="N","Geen eiwitrust, direct naar ","1e fase, Eiwitrust")) -> Geen eiwitrust, direct naar | B29: =IF(Aardbier=1," er is",IF(Eiwitrust="J",54,$B$30)) -> 62 | C29: =IF(Aardbier=1,"dus geen ",IF(Eiwitrust="J","± 2° C","")) ->  | D29: =IF(Aardbier=1,"eiwitrust ",IF(Eiwitrust="J",K5,"")) ->  | K29: Beslagketel moet minstens een volume hebben van > | L29: =IF(moutkilos=0,"",moutkilos+mashwater) -> 12.23409143 | S29: 27 | T29: 181 | U29: 100 | V29: 53 | W29: 227
A30: =IF(Aardbier=1,"éénstaps maisch ","β amylase (maltose)") -> β amylase (maltose) | B30: =IF(Aardbier=1,66,IF(Aardbier="D",62,63)) -> 62 | C30: =IF(Aardbier=1,"± 1,5°C",IF(Aardbier="D","± 1,5°C","± 2°C")) -> ± 1,5°C | D30: =IF(Aardbier=1,90,IF(Aardbier="Z",25-($K$5/2),45-($K$5/2))) -> 45 | G30: Vóór het koken moet het wort (zonder de suiker) een densiteit | S30: 28 | T30: 177 | U30: 96 | V30: 55 | W30: 227 | AA30: =_hop6 -> - - Kies hop - -
A31: =IF(Aardbier="D","Gemengde amylase ",IF(Aardbier="Z","Ga snel naar volgende stap","")) -> Gemengde amylase | B31: =IF(Aardbier="D","66,5","") -> 66,5 | C31: =IF(Aardbier="D","± 1,5°C","") -> ± 1,5°C | D31: =IF(Aardbier="D",15,"") -> 15 | G31: hebben van ± : | J31: =mashplato*($L$27+verkookwater-Vast_verlies)/$L$22 -> 10.10796672 | K31: =(1+($J$31/(258.6-0.87955*$J$31)))*1000 -> 1040.478897 | L31: =IF(ISNUMBER($J$31),$J$31*1.035,"") -> 10.46174556 | S31: 29 | T31: 168 | U31: 92 | V31: 55 | W31: 228 | AA31: =VLOOKUP(_hop6,'Info-Tabellen'!$R:$V,3,0) -> 0
A32: =IF(Aardbier=1,"","α amylase (body) ") -> α amylase (body) | B32: =IF(Aardbier=1,"",72) -> 72 | C32: =IF(Aardbier=1,"",IF(Aardbier="D","± 1,5°C","± 2°C")) -> ± 1,5°C | D32: =IF(Aardbier=1,"",IF(Aardbier="Z",30,20)) -> 20 | L32: Min.vermogen heater â | S32: 30 | T32: 165 | U32: 88 | V32: 54 | W32: 229
A33: Filterspoelen: ga naar | B33: 75..78° | D33: nodige L spoelwater > | E33: =IF(mashplato<SUM(E19:E23),Vast_verlies,IF(mashplato=0,0,totaalvolume-mashwater)) -> 7.733186993 | F33: Max.80° | G33: < Pas spoelwater aan: pH 5,2 à 5,5 | L33: =$K$22/6.5 -> 2.053817265 | S33: 31 | T33: 158 | U33: 86 | V33: 57 | W33: 229 | AA33: Noteer: FWH= First Wort Hopping = als het gefilterd wort boven 90°zit, tot net vóór koken toevoegen.
A34: STOP spoelen bij SG | B34: =259/(259.12955-C34)*1000 -> 1011.207024 | C34: =IF(mashplato<13.4,3,mashplato*mashplato/58) -> 3 | D34: =C34*1.035 -> 3.105 | E34: 1043 | G34: Kruiden / Kookadditieven | J34: aantal | K34: unit | L34: na…min. | S34: 32 | T34: 149 | U34: 81 | V34: 56 | W34: 240 | AA34: Adviezen voor de gekozen brouwzouten, kruiden, specerijen en additieven
A35: Koken: Kies Hopsoort â | B35: Type â | C35: aantal gram | D35: % alfazuur | E35: na…min | F35: =IBUâ | G35: Zinksulfaat | K35: =VLOOKUP(G35,'Info-Tabellen'!$AE:$AG,2,0) -> g | O35: water in hop â | P35: cor.tijdstip | Q35: BitterFactor | S35: 33 | T35: 142 | U35: 77 | V35: 52 | W35: 240 | AA35: =VLOOKUP(G35,'Info-Tabellen'!$AE:$AG,3,0) -> Sporenelement IN GISTSTARTER TE DOEN!, 0,5 g / hectoliter wort
A36: Styrian Golding (A) | B36: BLM | C36: =23/21*Gewenste_liters -> 10.95238095 | D36: =VLOOKUP(_hop1,'Info-Tabellen'!$R:$T,2,0) -> 3.5 | E36: =Kooktijd-1 -> 89 | F36: =IF(E36="","",IF(C36=0," ",IF(P36>Kooktijd,0,IF(B36="PELL",TANH(PI()*(Kooktijd-P36)/120)*Q36*C36*D36*10/Gewenste_liters*1.1,TANH(PI()*(Kooktijd-P36)/120)*Q36*C36*D36*10/Gewenste_liters)))) -> 0.2620361296 | G36: Biersol | K36: =VLOOKUP(G36,'Info-Tabellen'!$AE:$AG,2,0) -> ml | O36: =IF(B36="BLM",C36*0.006,C36*0.00267) -> 0.06571428571 | P36: =IF(E36="","",IF(E36="FWH",0,IF(E36="koud",Kooktijd,E36))) -> 89 | Q36: =IF(E36="","",IF(E36="FWH",0.398*0.000125^(MaischSG/1000-1),0.398*0.000275^(MaischSG/1000-1))) -> 0.2611651165 | S36: 34 | T36: 135 | U36: 72 | V36: 48 | W36: 240 | AA36: =VLOOKUP(G36,'Info-Tabellen'!$AE:$AG,3,0) -> Kiezelsol om trub beter neer te slaan 3ml/10liter direct na koken
A37: Styrian Golding (A) | B37: BLM | C37: =30/21*Gewenste_liters*105% -> 15 | D37: =VLOOKUP(_hop2,'Info-Tabellen'!$R:$T,2,0) -> 3.5 | E37: 37 | F37: 12.10185821 | G37: - - Kies additief - - | K37: =VLOOKUP(G37,'Info-Tabellen'!$AE:$AG,2,0) -> - | O37: 0.09 | P37: 37 | Q37: 0.2611651165 | S37: 35 | T37: 130 | U37: 70 | V37: 46 | W37: 241 | AA37: =VLOOKUP(G37,'Info-Tabellen'!$AE:$AG,3,0) -> -
A38: Saaz CZ (A) | B38: BLM | C38: =10/21*Gewenste_liters*310% -> 14.76190476 | D38: =VLOOKUP(_hop3,'Info-Tabellen'!$R:$T,2,0) -> 2.8 | E38: 37 | F38: 9.527812175 | G38: - - Kies additief - - | K38: =VLOOKUP(G38,'Info-Tabellen'!$AE:$AG,2,0) -> - | O38: 0.08857142857 | P38: 37 | Q38: 0.2611651165 | S38: 36 | T38: 119 | U38: 64 | V38: 38 | W38: 241 | AA38: =VLOOKUP(G38,'Info-Tabellen'!$AE:$AG,3,0) -> -
A39: - - Kies hop - - | B39: BLM | D39: =VLOOKUP(_hop4,'Info-Tabellen'!$R:$T,2,0) -> 0 | G39: - - Kies additief - - | K39: =VLOOKUP(G39,'Info-Tabellen'!$AE:$AG,2,0) -> - | O39: 0 | S39: 37 | T39: 111 | U39: 62 | V39: 36 | W39: 241 | AA39: =VLOOKUP(G39,'Info-Tabellen'!$AE:$AG,3,0) -> -
A40: - - Kies hop - - | B40: BLM | D40: =VLOOKUP(_hop5,'Info-Tabellen'!$R:$T,2,0) -> 0 | G40: - - Kies additief - - | K40: =VLOOKUP(G40,'Info-Tabellen'!$AE:$AG,2,0) -> - | O40: 0 | S40: 38 | T40: 105 | U40: 56 | V40: 28 | W40: 242 | AA40: =VLOOKUP(G40,'Info-Tabellen'!$AE:$AG,3,0) -> -
A41: - - Kies hop - - | B41: PELL | D41: =VLOOKUP(_hop6,'Info-Tabellen'!$R:$T,2,0) -> 0 | G41: - - Kies additief - - | K41: =VLOOKUP(G41,'Info-Tabellen'!$AE:$AG,2,0) -> - | O41: 0 | S41: 39 | T41: 99 | U41: 52 | V41: 25 | W41: 242 | AA41: =VLOOKUP(G41,'Info-Tabellen'!$AE:$AG,3,0) -> -
A42: Geïsomeriseerd Extract > | B42: - - | D42: 6 | E42: (Nadien) | F42: =IF(C42=0," ",C42*D42/Gewenste_liters) ->  | G42: - - Kies additief - - | K42: =VLOOKUP(G42,'Info-Tabellen'!$AE:$AG,2,0) -> - | N42: vast verlies > | O42: =Vast_verlies -> 1 | P42: liter | S42: 40 | T42: 91 | U42: 50 | V42: 20 | W42: 242 | AA42: =VLOOKUP(G42,'Info-Tabellen'!$AE:$AG,3,0) -> -
A43: Advies: Einde Koken, pH best tussen 5,1 en 5,4. | D43: Totaal IBU >> | F43: =SUM(F36:F42) -> 21.89170651 | G43: - - Kies additief - - | K43: =VLOOKUP(G43,'Info-Tabellen'!$AE:$AG,2,0) -> - | N43: blijft achter > | O43: =SUM(O36:O42) -> 1.244285714 | P43: liter | S43: 41 | T43: 83 | U43: 45 | V43: 15 | W43: 243 | AA43: =VLOOKUP(G43,'Info-Tabellen'!$AE:$AG,3,0) -> -
A44: Einde koken: De gemeten pH > | C44: =VLOOKUP(HoofdGist,'Info-Tabellen'!$X:$AB,4,0) -> 22...30 | D44: < Advies Vergistings T° | H44: Toegepaste T° > | I44: 25 | J44: â Vóór het koken (@75°C) â | N44: verkookwater > | O44: =verkookpercent/100*Kooktijd/60*$L$27 -> 1.528264829 | P44: < extra water bij te rekenen | S44: 42 | T44: 74 | U44: 41 | V44: 7 | W44: 243
A45: Indien High Gravity > > | B45: Koudwater> | C45: 0 | D45: Spoelwater> | E45: =IF(C45="","",$E$33-$C$45) -> 7.733186993 | F45: Stop spoelen bij > | H45: =IF(C45="","",259/(259.12955-I45)*1000) -> 1011.207024 | I45: =IF(C45="","",$C$34*Gewenste_liters/(Gewenste_liters-C45)) -> 3 | J45: =IF(C45="","",$K$22/Gewenste_liters*(Gewenste_liters-$C$45)) -> 13.34981222 | K45: =IF(C45="","",259/(259.12955-L45)*1000) -> 1040.070489 | L45: =IF(C45="","",J31/(Gewenste_liters-$C$45)*Gewenste_liters) -> 10.10796672
A46: Resultaten na Koelen  | C46: vul meting inâ | E46: â de omgerekende stamwort âæ | H46: 0 | J46: =IF(Stamplato="","",IF(Eindcijfer="","",0.1808*Stamplato+0.8192*Eindplato)) -> 1.615652951 | L46: =IF(Stamwort="","",1+(Stamplato/(258.6-0.87955*Stamplato))) -> 1.062585651 | P46: bij verliezen | S46: 43 | T46: 76 | U46: 40 | V46: 40 | W46: 243
A47: Kies een meetinstrument > | B47: S.G. | C47: =54+K10 -> 1062.397188 | D47: =IF(Stamwort="","SG",IF(meter="S.G.",Stamwort,IF(meter="°Plato",259/(259.12955-Stamwort)*1000,IF(meter="Brix",259/(259.12955-Stamplato)*1000)))) -> 1062.397188 | E47: =IF(Stamwort="","°Plato",IF(meter="°Plato",Stamwort,IF(meter="S.G.",(259*Stamwort/1000-259)/(Stamwort/1000-0.0089),IF(meter="Brix",Stamwort/Brixratio)))) -> 15.3402135 | G47: =IF(Stamwort="","Brix",IF(meter="Brix",Stamwort,IF(meter="°Plato",Stamwort*Brixratio,IF(meter="S.G.",Stamplato*Brixratio)))) -> 15.79928616 | I47: Overschrijf: Bekomen liters> | L47: 9.3 | N47: verlieswater > | O47: =verkookwater+hopverlies -> 2.772550544 | P47: < som water verdamping | S47: 44 | T47: 66 | U47: 37 | V47: 36 | W47: 243
C48: NA DE HOOFDGISTING: noteer SG of °P hevelen > | D48: 1,6°P | G48: noteer de lagertemp > | H48: 15 | I48: Heveldatum > | K48: niet geheveld na hoofdgisting | P48: en in hop bij 20°C | S48: 45 | T48: 63 | U48: 35 | V48: 32 | W48: 244
B49: De resultaten vóór bottelen meet ik met > | C49: REFRAC | G49: De aflezing van dit toestel is in > | H49: S.G. | K49: Het getal dat ik aflees > | L49: 1020
A50: Noteer: Het uitgegist bier moet helder zijn voor een Refractometer-meting! | E50: =IF(Eindcijfer="","- -",81.92*(Stamplato-Eindplato)/(206.65-1.0665*Stamplato)) -> 7.212457253 | F50: =IF(ISNUMBER(alconalager),12-(alconalager*100/1.97),"") -> 7.413788789 | G50: =IF(Eindcijfer="","°Plato",IF(meternadien="°Plato",Eindcijfer,IF(meternadien="S.G.",(259*Eindcijfer/1000-259)/(Eindcijfer/1000-0.0089),Eindcijfer/1.03))) -> 5.123133221 | H50: =IF(Eindcijfer="","Brix",IF(meternadien="Brix",Eindcijfer,IF(meternadien="°Plato",Eindcijfer*Brixratio,IF(meternadien="S.G.",VLeindplato*Brixratio)))) -> 5.276448582 | K50: =IF(Eindcijfer="","SG",IF(meternadien="S.G.",Eindcijfer,IF(meternadien="°Plato",259/(259.12955-Eindcijfer)*1000,IF(meternadien="Brix",259/(259.12955-Eindcijfer)*1000)))) -> 1020
A51: =IF(refofhyg="HYGRO","°Plato en S.G. conversie > ","Met een hygrometer is dit >") -> Met een hygrometer is dit > | B51: =IF(EindSG="SG","°Pt",IF(refofhyg="REFRAC",(259*EindSG/1000-259)/(EindSG/1000-0.0089),VLeindplato)) -> -1.413400451 | C51: OF | D51: =IF(Stamplato="°Plato","SG",IF(VLeindplato="°Plato","SG",IF(refofhyg="HYGRO",VLeindSG,(1.001843-(0.002318474*Stamplato)-(0.000007775*Stamplato*Stamplato)-(0.000000034*Stamplato*Stamplato*Stamplato)+(0.00574*VLeindplato)+(0.00003344*VLeindplato*VLeindplato)+(0.000000086*VLeindplato*VLeindplato*VLeindplato))*1000))) -> 994.6207792 | J51: Bekomen echt brouwzaalrendement > | K51: =IF(Totaalkg=0,"",IF(Bekomenliter="","",IF(Stamwort="","",StamSG/1000*Bekomenliter*Stamplato/(Totaalkg)/100))) -> 0.5718026301
A52: Schijnbare Vergistings Graad > | B52: =IF(Stamwort="","",IF(Eindcijfer="","",((StamSG-EindSG)/(StamSG-1000)))) -> 1.086209346 | C52: Werkelijke Vergistings Graad > | F52: =IF(Eindcijfer="","",IF(Stamplato="","",(Stamplato-Restextract)/Stamplato)) -> 0.8946785877 | G52: =IF(alcogewicht="","",IF(Eindcijfer="","",IF(Bekomenliter="","",EindSG/1000*alcogewicht/0.794/100))) -> 0.09034836086 | H52: vol. | I52: =IF(Eindcijfer="","",IF(nietvergist>6,"!!!! >",IF(nietvergist>5,"zie na: >>",""))) ->  | K52: =IF(nietvergist="","","Ev. niet vergist suiker>") -> Ev. niet vergist suiker> | L52: =IF(Stamwort="","",IF(Eindcijfer="","",IF(((Eindplato-voorsp_eindplato)*8.1-2)<0,0,(Eindplato-voorsp_eindplato)*8.1-2))) -> 0
A53: Bottelen: | B53: =IF($G$54="J",$K$54,IF(alconalager="","",IF(kleur>50,botsuikervlgskleur,botsuikervlgsalco))) -> 9.4 | D53: Temperatuur hergisting > | E53: 20 | G53: duurtijd > | J53: gist hergisting >
A54: Kies suikersoort > > | B54: Kristalsuiker | F54: Zelf bottelsuiker opgeven? > | G54: J | J54: zo ja, geef aantal g/liter> | K54: 9.4
A55: finaal g suiker/L Bottelen > | B55: =IF(Eindcijfer="","",IF(suikersoort="Kristalsuiker",adviessuiker,IF(suikersoort="Dextrose",adviessuiker/0.93,adviessuiker/0.975))) -> 9.4 | C55: Suikergift > | D55: =IF(Eindcijfer="","",IF(adviessuiker="","",suikergift*Bekomenliter)) -> 87.42 | F55: =IF(Eindcijfer="","",IF(adviessuiker-nietvergist<0,"GEEN",suikergift-nietvergist)) -> 9.4 | H55: Dan is suikergift > | I55: =IF(Eindcijfer="","",IF(adviessuiker-nietvergist<0,"",(suikergift-nietvergist)*Bekomenliter)) -> 87.42 | J55: =IF(Eindcijfer="","",IF(suikergift=corsuiker,"Suikergift blijft dezelfde: ","Indien restsuiker verder kan uitgisten:")) -> Suikergift blijft dezelfde:
A56: Gebotteld Vol.% >> | B56: =IF(ISNUMBER(alconalager),alconalager+(adviessuiker/16.5/100),"") -> 0.09604533056 | D56: Minstens houdbaar tot ± > | E56: =IF($B$56="","",IF(Botdatum="","",IF($B$56*100<5,((($B$56*100)-5)*30)+215+Botdatum,((($B$56*100)-5)*130)+215+Botdatum))) -> 2017-12-03T14:08:35.286 | G56: TIP: Vergelijk uw finaal S.G. met labgisting > restsuikercontrole.
A57: Brouwplanner: R. Baert, Reynaert Wijn & Biergilde. | D57: versie: 7.testD | J57: Tekstbestand voor Forum: Herman H.
A58: In bottelvat >> | B58: =Bekomenliter -> 9.3 | D58: Bakken van 33cl >> | E58: =ROUNDDOWN(B58/0.33/24,0) -> 1 | G58: =((B58/0.33/24)-E58)*24 -> 4.181818182
A59: Nota's:
A60: Schenken: forse sis, bier blijft in fles
A61: Uitzicht: licht geel, troebel, gistvlokjes op bodem glas, mooie fijne shuimkraag, mooi stabiel
A62: Geur: kruidig, peper
A63: Smaak: volle body, behoorlijk restzoet, zeker niet droog genoeg voor een Saison. Wel clean en zonder smaakafwijkingen.
A64: Nochtans gistingstemp laten oplopen tot 26°C na een paar dagen... Misschien niet voldoende nageggist? Diacetyl? Volgende keer 2wk laten nagisten.
N69: Voor overzichtelijkheid: Best kolommen N tot en met Y verbergen!
A71: Overzicht Wijzigingen | C71: Noteer: een testversie heeft een "test + nr" achter de versienummer
A73: Versie 6.test.6: | B73: - Er wordt ondersteld dat giststarter ALTIJD afgegoten wordt, zoals het hoort, formules daartoe aangepast.
B74: - De voorspelling voor de eindvergisting wordt per grondstofregel berekend
B75: - Allerlei kleine verbeteringen om nauwkeuriger te voorspellen.
B76: - Betere voorspelling te bekomen Stamwort in fie van beslagdikte
B77: - Betere voorspelling eindvergisting in functie van beslagdikte en Maischprofiel
B78: - Ook nieuw: kleurbalk die ongeveer een idee geeft van de voorspelde kleur.
A79: Versie 6.test 10k: | B79: - Kleurvoorspelling volledig herzien + er zat opnieuw een fout factor 10 in suikerkleuren (nov 2013)
B80: - Nog nieuwe gisten toegevoegd.
B81: - Bitterheid gecorrigeerd volgens data bekomen uit een brouwerij met
B82: zeer betrouwbare hopgegevens en metingen lijst okt 2013.
A83: Versie 7: | B83: - Nodige Densiteit vóór het koken toegevoegd in cellen J/K/L 31
B84: - er is een versie voor oudere Office software (Office 2000/2003) en voor recente (2007 tot 2013)
B85: - Giststarter of Korrelgist in de cellen J/K/L 17 tot 20 wordt getoond volgens gistkeuze
B86: - Tekstbestand maken wordt door Forumlid Herman H gemaakt!
B87: - Hopberekeningsformules gecorrigeerd voor FWH, PELL enz…
B88: - Veel nieuwe korrelgisten toegevoegd, o.a. Mangrove Jacks en Gozdawa (vanaf 7testb)
B89: - Fout in cel K40 hersteld,
B90: - Vanaf test7d: Rij inevoegd voor High Gravity Brewing

Sheet Info-Tabellen
A1: Info: Eigenschappen van gekende bieren. | H1: Mouten en granen. | M1: Suikers & extracten | R1: Hop | X1: Gisten gegevens | AE1: Brouwzouten, Kruiden, Specerijen en extra additieven
A2: Naam | B2: Stam-wort (°Pt) | C2: Stam-wort (SG) | D2: Alc. Vol % | E2: EBC kleur | F2: IBU (EBU) | H2: Naam De kolom "vergistbaarheid" is t.o.v. Pilsmout = 100 | I2: % Op-brengst | J2: ± Kleur EBC | K2: Vergist ings correc- tie | M2: Naam De kolom "vergistbaarheid" is t.o.v. kristalsuiker = 100 | N2: % Op-brengst | O2: ± Kleur EBC | P2: Vergist-baar-heid(*) | R2: Benaming | S2: Gem. Alfa zuur % | T2: Eigenschappen | U2: Vervangers | V2: Biertype | X2: Naam | Y2: SVG op Mout | Z2: SVG op Suiker | AA2: Advies °C vergis ting | AB2: Eigenschappen: de hier vermelde vergistngspercentages zijn benaderingen en niet aan de praktijk getoetst. | AE2: Naam | AF2: unit | AG2: advies
A3: Affligem blond | B3: 16 | C3: =IF(ISNUMBER(B3),(1+(B3/(258.6-0.87955*B3)))*1000,"") -> 1065.432394 | D3: 6.8 | E3: 14 | F3: 24 | H3: - - Kies mout of graan - - | M3: - - Kies suiker of extract - - | R3: - - Kies hop - - | X3: 1) KORRELGISTEN | AE3: - - Kies additief - - | AF3: - | AG3: -
A4: Affligem Tripel | B4: 18.4 | C4: =IF(ISNUMBER(B4),(1+(B4/(258.6-0.87955*B4)))*1000,"") -> 1075.902493 | D4: 8.3 | E4: 13 | F4: 31 | H4: Pilsmout 3 | I4: 80.07 | J4: 3 | K4: 100 | M4: Basterdsuiker | N4: 99.5 | O4: 0.1 | P4: 100 | R4: Admiral (B) | S4: 14 | T4: Typisch Engels aroma, universele hop. Goede vervanger voor zowel hoge alpha hop als universele hop bij het koken. | U4: Target, Northdown, Challenger | V4: Engelse Ale | X4: Brewferm Blanche korrel | Y4: 75 | Z4: 107.5 | AA4: 20 | AB4: Witbier, banaan/kruidnagelAromas, Hoger eindSG | AC4: k | AE4: Anijszaad | AF4: g | AG4: soms bij Wittekes, Max 1g per 25 liter geplet, einde koken
A5: Grimbergen dubbel | B5: 14.5 | C5: 1058.979886 | D5: 6.4 | E5: 18 | F5: 31 | H5: Tarwemout | I5: 83.5 | J5: 2.7 | K5: 100 | M5: Bruine (basterd)suiker | N5: 99.55 | O5: 30 | P5: 99.5 | R5: Amarillo (U) | S5: 10 | T5: Citrus, bloemig. | U5: Cascade, Centennial | V5: American ale, IPA. | X5: Brewferm Lager korrel | Y5: 72 | Z5: 107 | AA5: 20 | AB5: Cleane smaak, niet zwavelig, medium eindSG | AC5: k | AE5: Ascorbinezuur | AF5: g | AG5: (Ascorvit,Vit.C) voorkomt oxidatie, dosis 1g/ 30 liter beslag
A6: Leffe Blond | B6: 15.6 | C6: 1063.704927 | D6: 6.6 | E6: 15 | F6: 25 | H6: Brewferm Whisky mout | I6: 75 | J6: 4 | K6: 100 | M6: Bruine kandijsuiker | N6: 99.55 | O6: 10.00502161 | P6: 100 | R6: Bramling Cross (A) | S6: 6.4 | T6: Mild, fruitig aroma met iets van citrus/limoen. Heel licht zurig. | U6: (East) Kent Golding, WGV, evt Fuggles | V6: Engelse Ale, Scotch | X6: Brewferm Top | Y6: 68 | Z6: 107 | AA6: 20 | AB6: Geeftt fruitige esters.Hoger eindSG | AC6: k | AE6: Biersol | AF6: ml | AG6: Kiezelsol om trub beter neer te slaan 3ml/10liter direct na koken
A7: Maredsous 8 | B7: 16.9 | C7: 1069.337428 | D7: 8.1 | E7: 65 | F7: 29 | H7: Palemout 7 | I7: 80.07 | J7: 8 | K7: 100 | M7: Candico donkere stroop | N7: 68 | O7: 100 | P7: 93 | R7: Brewers Gold (A) | S7: 6 | T7: Fruitig, zwarte bes, pittig. Universele bitterhop. Heeft een wat hardere bitterheid. | U7: Northdown, Northern brewer | V7: Lambiek, Duitse pils | X7: Danstar Abbaye | Y7: 77 | Z7: 107.5 | AA7: 21 | AB7: Nogal phenolisch, minder geslaagd. | AC7: k | AE7: Calciumchloride | AF7: g | AG7: CaCl2 Geeft zachte en volmondigere smaak Max.0,2g/lit. Verlaagt pH.
A8: Sint-Bernardus 12 | B8: 21.5 | C8: 1089.699316 | D8: 10 | E8: 78 | F8: 22 | H8: Munich mout 15 | I8: 80.07 | J8: 15 | K8: 100 | M8: Dextrosepoeder (Glucose) | N8: 92.3 | O8: 0.1 | P8: 100 | R8: Cascade PELL Brouwland (A) | S8: 7 | T8: Medium sterk aroma. Amerika´s meest populaire aromahop. Heeft een kenmerkend citrus- tot grapefruitkarakter. | U8: Centennial, Amarillo | V8: IPA, Am.Ale, witbier | X8: Danstar Belle Saison | Y8: 91 | Z8: 107.5 | AA8: 22...30 | AB8: Belgische Saisongist | AC8: k | AE8: Calciumsulfaat | AF8: g | AG8: CaSO4 Verlaagt pH, verhoogt hopbitter, dosis zie verpakking
A9: St-Feuillin Tripel | B9: 18 | C9: 1074.144832 | D9: 8.5 | E9: 14 | F9: 28 | H9: Tarwemout donker | I9: 80 | J9: 31.00514197 | K9: 99.5 | M9: Glucosestroop 28 D.E. | N9: 69 | O9: 1 | P9: 23 | R9: Cascade BLM (A) | S9: 7.5 | T9: Medium sterk aroma. Amerika´s meest populaire aromahop. Heeft een kenmerkend citrus- tot grapefruitkarakter. | U9: Centennial, Amarillo | V9: IPA, Am.Ale, witbier | X9: Danstar BRY-97 IPA | Y9: 82 | Z9: 107.5 | AA9: 17...20 | AB9: Voor o.a. IPA's, licht esterachtig, vrijwel neutraal en geeft geen onaangename geuren. | AC9: k | AE9: Carafa of "Réglise" | AF9: g | AG9: (Zoethoutdrop) Schuimverbeteraar, 1,5g / 10L tijdens koken
A10: Tripel Karmeliet | B10: 19.5 | C10: 1080.762472 | D10: 8 | E10: 12 | F10: 20 | H10: Aromamout (Amber 50) | I10: 80.07 | J10: 49.05733881 | K10: 99.5 | M10: Glucosestroop 50 D.E. | N10: 69 | O10: 1 | P10: 70 | R10: Centennial (U) | S10: 9.5 | T10: Medium intens met bloemige en citrusachtige trekjes | U10: Cascade | V10: Am. Ale, Am. Witbier | X10: Danstar CBC-1 BottleYeast | Y10: 75 | Z10: 107.5 | AA10: 13…20 | AB10: Speciale Bottelgist, flinke sedimentatie. | AC10: k | AE10: Cardemom | AF10: pit | AG10: bij Wittekes, Binnenste van 1 gepelde pit per 20 liter einde koken
A11: Chimay Rood | B11: 14.9 | C11: 1060.693773 | D11: 7.1 | E11: 30 | F11: 20 | H11: Biscuit mout 50 | I11: 70 | J11: 58 | K11: 99.5 | M11: Glucosestroop 55 D.E. | N11: 69 | O11: 1 | P11: 87 | R11: Challenger (U) | S11: 6 | T11: Mild tot matig intens, behoorlijk pittig. Een alternatief voor East Kent Golding, maar iets bitterder. | U11: (Hallertauer) Perle, Northern Brewer | V11: Eng.ale, stout, bitters. | X11: Danstar Diamond Lager | Y11: 78 | Z11: 107.5 | AA11: 11 | AB11: Lagerbier Weihenstephan stam | AC11: k | AE11: Curaçaoschil/bitter | AF11: g | AG11: geeft sterk sinaas aroma + bitter tot 1g / 10 liter
A12: Chimay Wit | B12: 16.9 | C12: 1069.337428 | D12: 8.2 | E12: 17 | F12: 35 | H12: CaraPils 5 | I12: 77 | J12: 5 | K12: 98 | M12: Glucosestroop 63 D.E. | N12: 69 | O12: 1 | P12: 76 | R12: Citra (U) | S12: 13 | T12: Zeer fruitig, perzik, abrikoos, passievrucht, grapefruit, limoen, meloen, kruisbes, lychee, ananas, mango, papaya en andere tropische vruchten smaken en aroma's | U12: Simcoe, en andere fruitige citrus „C” hop | V12: Licht & amber gekleurde bieren. American pal ale, IPA, double IPA | X12: Danstar Munich Weizen | Y12: 78 | Z12: 107.5 | AA12: 20 | AB12: Zwavelig: Weizen en Chimay achtig | AC12: k | AE12: Fosforzuur 85% | AF12: ml | AG12: Voor aanzuren beslag, spoelwater en gekookt wort.
A13: Chimay Blauw | B13: 18.7 | C13: 1077.22409 | D13: 9 | E13: 80 | F13: 35 | H13: CaraPils (Cara 20) | I13: 76 | J13: 22 | K13: 97 | M13: Glucosestroop 95 D.E. | N13: 69 | O13: 1 | P13: 97 | R13: EastKent Golding (A) | S13: 5 | T13: De fijnste aromahop met engels karakter | U13: First Gold, ev. Fuggles. | V13: Eng. En Belg. Ale | X13: Danstar Nottingham Ale | Y13: 77 | Z13: 107.5 | AA13: 20 | AB13: Zuivere Gist, medium eindSG, heeft Rochefort trekjes. | AC13: k | AE13: Gagel, gedroogd | AF13: g | AG13: Natuurlijk bittermiddel dosis=? Gebruik best samen met hop.
A14: Orval | B14: 13.6 | C14: 1055.141517 | D14: 6.2 | E14: 25 | F14: 33 | H14: CaraBelge 35 (Brouwland) | I14: 76 | J14: 35 | K14: 95 | M14: Honing dik | N14: 81 | O14: 2 | P14: 90 | R14: First Gold (U) | S14: 7.5 | T14: Uitgebalanceerde bitterheid, fruitig, iets pikant. Een beetje als Kent Golding (zacht, aangenaam, geurig) maar wat pittiger. | U14: (East) Kent Gold, ev Fuggles. | V14: Eng. En Belg. Ale | X14: Danstar Windsor Ale | Y14: 68 | Z14: 107 | AA14: 20 | AB14: Zuivere Neutrale gist, hoger eind SG goede bottelgist | AC14: k | AE14: gedroogde citroenschil | AF14: g | AG14: geeft citrusaroma tot 1g / 10 liter
A15: Rochefort 6 | B15: 7.5 | C15: 1029.761506 | D15: 7.8 | E15: 40 | F15: 18 | H15: CaraVienne (Cara 50) | I15: 76 | J15: 66 | K15: 95 | M15: Honing vloeibaar | N15: 79 | O15: 1.5 | P15: 90 | R15: Fuggles (A) | S15: 3 | T15: Mild en aangenaam, gronderig, fruitig. Typisch Engelse hopsmaak. Geeft bier een rond en vol karakter. | U15: Styrian Golding, Tettnanger, Willamette | V15: Alle bieren. | X15: Danstar Reserve | AC15: k | AE15: gedroogde sinaasschil | AF15: g | AG15: geeft aangenaam aroma Ongeveer 2g / 10 liter
A16: Rochefort 8 | B16: 19 | C16: 1078.548571 | D16: 9.2 | E16: 63 | F16: 22 | H16: CaraMunich (Cara 120) | I16: 75 | J16: 120 | K16: 88 | M16: Kandijstroop wit | N16: 69 | O16: 0.1 | P16: 100 | R16: Hallertau Hersbrücker (A) | S16: 3 | T16: Duitslands meest gebruikte aromahop met een fantastisch en kruidig aroma. | U16: Hallertau Mittelfrüh, Strisselspalt | V16: Bock, Lager, Ale, Lambiek | X16: Fermentis Safbr Abbaye | Y16: 80 | Z16: 107.5 | AA16: 21 | AB16: Krachtig, gisting kan zwavelig ruiken. | AC16: k | AE16: Gemberwortel | AF16: g | AG16: Max 2g /10 liter
A17: Rochefort 10 | B17: 23 | C17: 1096.48851 | D17: 11.3 | E17: 90 | F17: 27 | H17: Aromamout (Amber 150) | I17: 79 | J17: 150 | K17: 99.2 | M17: Kandijsuiker brokken wit | N17: 99.7 | O17: 0.1 | P17: 100 | R17: Hallertau Spalt Select (A) | S17: 6 | T17: Duitse aromahop met licht kruidig karakter. Goed alternatief voor de Franse Spalt | U17: Saaz, Tettnanger, Spalt, Hersbrücker | V17: Duitse lagers, Pils | X17: FermentisSafbrew F2 | Y17: 75 | Z17: 107.5 | AA17: 20 | AB17: Speciale Bottelgist, flinke sedimentatie. | AC17: k | AE17: Hoparoma | AF17: ml | AG17: Diverse aroma's Max 1ml/10liter vóór bottelen.
A18: Westmalle Dubbel | B18: 15.6 | C18: 1063.704927 | D18: 7.3 | E18: 74 | F18: 25 | H18: Special B (Cara 400) | I18: 76 | J18: 390 | K18: 73 | M18: Kristalsuiker | N18: 100 | O18: 0.004500101328 | P18: 100 | R18: Hallertauer Mittelfrüh (A) | S18: 4.5 | T18: Mild en aangenaam. Zacht aroma, gemiddelde bitterheid. | U18: Hallertauer Tradition | V18: Pils, Lager, Witbier, Trappist. | X18: Fermentis S-04 | Y18: 77 | Z18: 107.5 | AA18: 20 | AB18: Neutraal, gemiddeld, zeer goede sedimentatie. | AC18: k | AE18: Iers mos | AF18: g | AG18: (Carageen) Bevordert neerslaan trub, 1g op 5 liter, Min. 20' koken.
A19: Westmalle Tripel | B19: 19.6 | C19: 1081.206221 | D19: 9.6 | E19: 15 | F19: 39 | H19: Chocolademout (Mout roost 900) | I19: 75 | J19: 900 | K19: 90 | M19: Luikse Appelstroop | N19: 90 | O19: 30 | P19: 55 | R19: Hallertauer Perle (U) | S19: 5 | T19: Matig intens goed en hoppig aroma, fruitig, beetje pittig. Goede combinatie van uitgebalanceerde bitterheid en goede aroma eigenschappen. | U19: Northern Brewer, Perle | V19: Alle bieren. | X19: Fermentis S-33 | Y19: 70 | Z19: 107 | AA19: 21 | AB19: Zeer esterig, Zoet. | AC19: k | AE19: Jeneverbes (Juniperus) | AF19: g | AG19: 1 g / 10 liter einde koken, voor X-Mass & Scottch like Ales
A20: Westvleteren Blond | B20: 12.6 | C20: 1050.905457 | D20: 5.6 | E20: 9 | F20: 41 | H20: Black 1400 | I20: 64.8 | J20: 1400 | K20: 70 | M20: Luikse perensiroop | N20: 90 | O20: 30 | P20: 55 | Q20: 2 | R20: Hallertauer Tradition (A) | S20: 5.5 | T20: Zacht aroma, gemiddelde bitterheid. Bekend om zijn aromatische eigenschappen. Lijkt veel op Hallertauer Mittelfrüh. | U20: Hallertauer Mittelfrüh, Hersbrücker | V20: Lager, weizen, trappist, wit. | X20: Fermentis Saflager S-23 | Y20: 72 | Z20: 107.5 | AA20: 11 | AB20: Lagerbier, tamelijk fruitig. | AC20: k | AE20: Kaneelstokje | AF20: stuk | AG20: Wodt soms in X-Mass ales gedaan 1 medium stok / 30 liter
A21: Westvleteren 8 | B21: 17.6 | C21: 1072.392258 | D21: 8.3 | E21: 72 | F21: 35 | H21: Boekweitvlokken | I21: 73.58 | J21: 4 | K21: 100 | M21: Maltodextrine 18 D.E. | N21: 100 | O21: 1 | P21: 14 | R21: Hallert.Hersbrücker (A) | S21: 3.5 | T21: Mild tot redelijk sterk aroma, aangenaam hoppig en kruidig. | U21: Halllertau Mittelfrüh, Strissenspalt | V21: Zie Hallertau mittelfrüh | X21: Fermentis T-58 | Y21: 70 | Z21: 107.5 | AA21: 20 | AB21: Fruitig, kruidig, goede hergister | AC21: k | AE21: Karwijzaad, gemalen | AF21: g | AG21: 1 g / 10 liter einde koken, geeft Achouffe aroma's
A22: Westvleteren 12 | B22: 21.5 | C22: 1089.699316 | D22: 10.2 | E22: 79 | F22: 38 | H22: Maisvlokken | I22: 74.58 | J22: 1 | K22: 100 | M22: Maltodextrine 8 D.E. (Brewbody) | N22: 100 | O22: 1 | P22: 4.5 | R22: Lublin (Polen) (A) | S22: 3.7 | T22: Mild intens aroma, pikant, kruidig.Typische "edele" aromahop | U22: Saaz, Tettnanger ev Fuggles | V22: Belgische ales, bitter | X22: Fermentis US-05 | Y22: 80 | Z22: 107.5 | AA22: 20 | AB22: Universeel, krachtig, bier verbleekt. | AC22: k | AE22: Komijnzaad, gemalen | AF22: g | AG22: 1 g / 10 liter einde koken, geeft Achouffe aroma's
A23: Achouffe | B23: 19.2 | C23: 1079.433165 | D23: 8.9 | E23: 25 | F23: 30 | H23: Rijstvlokken | I23: 82.8 | J23: 0.2 | K23: 100 | M23: Moutextract poeder Amber | N23: 99.5 | O23: 18 | P23: 70 | R23: Magnum (Hallertau M.) (B) | S23: 13.4 | T23: Aangenaam maar niet uitgesproken aroma voor bieren met een "clean" karakter | U23: Columbus, Nugget | V23: Lagerbieren, stout, ales | X23: Fermentis W34-70 | Y23: 77 | Z23: 107.5 | AA23: 11 | AB23: Lagerbier, zuvere cultuur | AC23: k | AE23: Koriander | AF23: g | AG23: licht gemalen of gebroken zaden tot Max 15 g / hectoliter
A24: Adelscott au Whisky malt | B24: 15.8 | C24: 1064.568039 | D24: 6.8 | E24: 18 | F24: 18 | H24: Havervlokken / havermout | I24: 73.58 | J24: 3.7 | K24: 100 | M24: Moutextract poeder Black | N24: 99.5 | O24: 95 | P24: 60 | R24: Merkur (B) | S24: 10.7 | T24: Nieuwe bitterhop, fijner aroma dan Magnum | U24: Magnum | V24: Alle bieren. | X24: Fermentis WB-06 | Y24: 78 | Z24: 107.5 | AA24: 20 | AB24: Voor Weizen & Chimay | AC24: k | AE24: Kruidnagel | AF24: stuk | AG24: 1 per 30 liter einde koken, voor X-Mass & Scottch like Ales
A25: Bass Pale-Ale | B25: 10.7 | C25: 1042.939327 | D25: 4.5 | E25: 19 | F25: 30 | H25: Gerstvlokken | I25: 74 | J25: 4 | K25: 100 | M25: Moutextract poeder Donker | N25: 99.5 | O25: 57 | P25: 65 | R25: Millennium (B) | S25: 15 | T25: Pikant en kruidig | U25: Nugget, Columbus | V25: Ales, stout, barley wine | X25: Mauribrew Ale | Y25: 66 | Z25: 107 | AA25: ? | AB25: Australische Ale. Data nog onbekend | AC25: k | AE25: Magnesiumsulfaat | AF25: g | AG25: MgSO4 maakt uw bier harder (zie Burton-onTrent) 1g/10 liter
A26: Bittburger Pils | B26: 11.4 | C26: 1045.861755 | D26: 4.8 | E26: 4 | F26: 38 | H26: Roggevlokken | I26: 73.58 | J26: 4 | K26: 100 | M26: Moutextract poeder licht | N26: 99.5 | O26: 8 | P26: 75 | R26: Northern Brewer (B) | S26: 9 | T26: Universele hop, gebruikt als bitterhop. Wordt in donkere bieren gebruikt, De hopbellen zijn van nature wat bruiner. | U26: Brewer's Gold. | V26: ESB, bitter, Engelse pale ale.. | X26: Mauribrew Lager | Y26: 66 | Z26: 107 | AA26: 11 | AB26: Australische Lager. Data nog onbekend | AC26: k | AE26: Melkzuur (Lactol) | AF26: ml | AG26: Meestal van 80% Voor aanzuren beslag, spoelwater en gekookt wort.
A27: Cantillon Geueze | B27: 12.8 | C27: 1051.750258 | D27: 5.4 | E27: 9 | F27: 15 | H27: Tarwevlokken | I27: 73.58 | J27: 4 | K27: 100 | M27: Moutextract poeder Tarwe | N27: 99.5 | O27: 79 | P27: 75 | R27: Nugget (Duitsland) (B) | S27: 13.6 | T27: Matig sterk, kruidig aroma Als Nugget (USA), maar met iets lagere alpha waarden | U27: Nugget USA, ev. Magnum | V27: ales, stout, barley wine | X27: Mauribrew Weiss | Y27: 80 | Z27: 107.5 | AA27: ? | AB27: Australische Weizen. Data nog onbekend | AC27: k | AE27: Steranijs | AF27: pit | AG27: bij Wittekes, Max 1gemalen pit per 25 liter einde koken
A28: Courage BulldogStrongAle | B28: 16.5 | C28: 1067.59873 | D28: 7.7 | E28: 76 | F28: 26 | H28: Bruine rijst | I28: 85 | J28: 0.3 | K28: 100 | M28: Rietsuiker (bijv. Candico) | N28: 97.38 | O28: 6 | P28: 100 | R28: Perle (Duitsland) (A) | S28: 6.4 | T28: Matig intens, hoppig aroma, fruitig, pittig. Goede combinatie v. uitgebalanceerde bitterheid & aroma eigenschappen. | U28: Hall. Perle | V28: pale ale, porter, stout, wit | X28: Mauribrew Reserve | AC28: k | AE28: Vanille lint | AF28: cm | AG28: stukje van 6 cm / 100 liter geeft houten vat toets
A29: De Koninck Ale | B29: 12 | C29: 1048.37824 | D29: 5 | E29: 22 | F29: 24 | H29: Geroosterde gerst | I29: 64.92 | J29: 1000 | K29: 70 | M29: Rijstsiroop LIMA of Horizon | N29: 77 | O29: 2 | P29: 76 | R29: Phoenix (B) | S29: 10 | T29: Mild tot matig intens, pikant aroma. | U29: (East) Kent Golding, Challenger | V29: ales, stout, porter, ESB, bitter | X29: Muntons premium Gold | Y29: 73 | Z29: 107.5 | AA29: 19 | AB29: Een goed gebalanceerde ale-gist voor 100 % moutrecepten. Zuivere smaak, matige alc. tolerantie | AC29: k | AE29: Wyeast Nutrient blend | AF29: g | AG29: Gistvoeding, 1 g /10 liter gekoeld wort
A30: De Koninck Blond | B30: 14 | C30: 1056.844412 | D30: 6 | E30: 10 | F30: 28 | H30: Weyermann Speltmout | I30: 80.5 | J30: 3 | K30: 100 | M30: Gerstemoutsiroop Horizon | N30: 77 | O30: 4 | P30: 74 | R30: Pioneer (U) | S30: 9 | T30: Zacht, typisch Engels aroma. | U30: (East) Kent Golding | V30: Engelse ales, ESB, bitter. | X30: Reserve | AC30: k | AE30: Zinksulfaat | AF30: g | AG30: Sporenelement IN GISTSTARTER TE DOEN!, 0,5 g / hectoliter wort
A31: Caledonian Edingburgh strong ale | B31: 18.7 | C31: 1077.22409 | D31: 8.1 | E31: 35 | F31: 60 | H31: Weyermann Tarwemout licht | I31: 84.4 | J31: 4 | K31: 100 | M31: Stroop (NL) | N31: 73.58 | O31: 30 | P31: 100 | R31: Premiant (U) | S31: 7 | T31: Nieuwe bittere Saaz variant | U31: Saaz | V31: Lagers & ales | X31: Reserve | AC31: k
A32: Duvel | B32: 17 | C32: 1069.772887 | D32: 8.5 | E32: 11 | F32: 32 | H32: Weyermann CaraPils | I32: 77 | J32: 4.006847492 | K32: 98 | R32: Record (U) | S32: 7 | T32: Belgische hop, fruitig | U32: mengsel North Brw met Brewers Gold | V32: Belgische Ales | X32: Gozdawa Bavarian Wheat | Y32: 70 | Z32: 107.5 | AA32: 23 | AB32: Specifieke Duitse giststam voor Weizen bier - banaansmaak: >24°gisten, flauwe floculatie. | AC32: k
A33: Einbecker Hell | B33: 16.3 | C33: 1066.73126 | D33: 7.5 | E33: 15 | F33: 38 | H33: Weyermann Rauchmalz | I33: 80.07 | J33: 5 | K33: 99.7 | R33: Saaz CZ (A) | S33: 2.8 | T33: Koning van de pilshop. De enige hop die gebruikt wordt in het oorspronkelijke pils ter wereld: Pilsner Urquell. | U33: Lublin, ev. Spalt | V33: Pils, Belgische ales, Lambiek | X33: Gozdawa Belgian Fruit & spicy ale | Y33: 80 | Z33: 107.5 | AA33: 23 | AB33: beroemde Belgische,bovengist stam voor Belgische bieren en abdijbieren. Medium floculatie | AC33: k
A34: Erdinger Hefe Weissbier | B34: 12.6 | C34: 1050.905457 | D34: 5.3 | E34: 9 | F34: 18 | H34: Weyermann Roggemout | I34: 85 | J34: 6 | K34: 100 | R34: Simcou (U) | S34: 13 | T34: bitterhop+aroma: Passievrucht, abrikoos + intens houtaroma. Fris en complex | U34: Amarillo, Cascade, Centennial (mengsel) | V34: Bittere fruitige bieren | X34: Gozdawa Czech Pilsener 18 | Y34: 81 | Z34: 107.5 | AA34: 13 | AB34: Ondergistende giststam met een hoge vergistingsgraad en een puur smaakprofiel | AC34: k
A35: Grölsch Lager | B35: 11.9 | C35: 1047.958083 | D35: 5 | E35: 3 | F35: 27 | H35: Weyermann Sauermalz pH 3,5 | I35: 69.25 | J35: 6 | K35: 100 | R35: Spalt (A) | S35: 5 | T35: Mild en aangenaam, ietsje pittig. Vergelijkbaar met Tettnanger, "edele" aromahop | U35: Saaz, Tettnanger, Strisselspalt. | V35: Ales en Lagers | X35: Gozdawa Fruit Blanche | Y35: 73 | Z35: 107.5 | AA35: 23 | AB35: Bovengist stam voor Witbier met fruitige esters | AC35: k
A36: Guinnes draft (vat) | B36: 11.9 | C36: 1047.958083 | D36: 4.6 | E36: 200 | F36: 45 | H36: Weyermann Viennamout | I36: 80.07 | J36: 7 | K36: 100 | R36: Spalt Select (A) | S36: 4.5 | T36: Nog intenser dan Spalt | U36: Spalt | V36: Ales en lagers | X36: Gozdawa German Lager W35 | Y36: 72 | Z36: 107 | AA36: 14 | AB36: Voor lager bier, zeer hoge flocullatie, eerder lage alcoholtolerantie | AC36: k
A37: Guinnes extra stout | B37: 17.6 | C37: 1072.392258 | D37: 7.2 | E37: 200 | F37: 65 | H37: Weyermann Tarwemout donker | I37: 84.4 | J37: 20 | K37: 99.9 | R37: Strisselspalt (A) | S37: 1.5 | T37: Medium intens, zeer aangenaam, fijn en hoppig. Frankrijk. | U37: Hersbrücker, ev. Hallertau Mittelfrûh | V37: Pils, Lager, Witbier. | X37: Gozdawa Old German (Alt) | Y37: 75 | Z37: 107.5 | AA37: 17.5 | AB37: Duitse bovengist voor bieren met weinig esters.Uitstekend geschikt voor Alt en Vlaams bruin. | AC37: k
A38: Heller Kölsch | B38: 11.9 | C38: 1047.958083 | D38: 5 | E38: 5 | F38: 28 | H38: Weyermann CaraHell | I38: 70 | J38: 25 | K38: 96 | R38: Styrian Golding (A) | S38: 3.5 | T38: Delicaat, iets pikant en grasachtig/bloemig. Zeer populair vanwege karakteristieke aroma en gemiddelde alpha waarden | U38: Fuggles | V38: Ales, Pils, lager. | X38: Gozdawa Porter & Kvas | Y38: 82 | Z38: 107.5 | AA38: 24 | AB38: Universele stam van hoge gisting, voor donker bier en Poolse Kvas, Alc.tolerantie tot 9vol% | AC38: k
A39: Hoegaarden Wit | B39: 11.9 | C39: 1047.958083 | D39: 5 | E39: 8 | F39: 18 | H39: Weyermann CaraRed | I39: 70 | J39: 40 | K39: 95 | R39: Target (U) | S39: 9.5 | T39: Zeer goede Engelse bitterhop met aangenaam aroma. Redelijk intens aroma, zeer hoge bitterwaarden. | U39: Fuggle met Northern Brewer | V39: Alle bieren. | X39: Gozdawa Pure Ale | Y39: 82 | Z39: 107.5 | AA39: 16…32 | AB39: beste universele giststam voor thuis brouwen! 16 -32 °C smaakprofiel is afhankelijk van de vergistingsT°. | AC39: k
A40: Jupiler | B40: 12.3 | C40: 1049.640503 | D40: 5.2 | E40: 3 | F40: 21 | H40: Weyermann CaraAmber | I40: 70 | J40: 60 | K40: 94 | R40: Tettnanger (A) | S40: 5 | T40: Zeer nobele Duitse aromahop, veel gebruikt bij lagerbieren. Heeft een mild, kruidig aroma en een fijne, delicate smaak. | U40: Spalt, Spalt Select, Hersbrücker | V40: Pils, Weizen, Wit, Trappist. | X40: Gozdawa US West Coast | Y40: 80 | Z40: 107.5 | AA40: 18 | AB40: Bovengist voor Amerikaanse bieren met laag estergehalte | AC40: k
A41: Liefmans Goudenband | B41: 12.8 | C41: 1051.750258 | D41: 5.3 | E41: 60 | F41: 20 | H41: Weyermann Melanoidin mout | I41: 80.07 | J41: 70 | K41: 99.5 | R41: Tradition (Duits) (A) | S41: 5.5 | T41: Zacht aroma, gemiddelde bitterheid. Zeer subtiel, lijkt veel op Mittelfrüh. | U41: Hersbrücker, Hallertauer Mittelfrüh | V41: Pils, weizen, wit. | X41: Gozdawa reserve | AC41: k
A42: Liefmans Kriek | B42: 12.8 | C42: 1051.750258 | D42: 5.3 | E42: 60 | F42: 20 | H42: Weyermann Chocolate Ontbitterd | I42: 65 | J42: 800 | K42: 70 | R42: WGV (WhitbreadGoldingVar./U) | S42: 6.5 | T42: Aangenaam en hoppig aroma met een gemiddelde intensiteit. | U42: (East) Kent Golding | V42: Engelse ales. | X42: Mangrove Bavarian Wheat M20 | Y42: 72 | Z42: 107.5 | AA42: 18...30 | AB42: Duitse tarwe/weizen/witbieren, flauwe floculatie, lage alc. Tolerantie, als bottelgist: flauw. | AC42: k
A43: Löwenbräu special export | B43: 12.8 | C43: 1051.750258 | D43: 5.4 | E43: 11 | F43: 24 | H43: WeyermannTarwemout Roost 900 | I43: 65 | J43: 900 | K43: 70 | R43: Willamette (A) | S43: 5 | T43: Mild en aangenaam, iets pikant, fruitig, bloemig, iets gronderig. | U43: Fuggle, Tettnanger, Styrian Golding. | V43: Engelse ales, APA, brown ale. | X43: Mangrove Belgian Ale M27 | Y43: 85 | Z43: 107.5 | AA43: 26…32 | AB43: Belgische bieren inclus hoge alc.%. Tot 14vol%! Flocculatie medium, matig bottelgeschikt. | AC43: k
A44: Lutèce - Bière de Paris | B44: 15.3 | C44: 1062.41258 | D44: 6.6 | E44: 50 | F44: 23 | H44: Weyermann Black ontbitterd | I44: 69.25 | J44: 1200 | K44: 65 | R44: Yeoman (U) | S44: 10 | T44: Bitterhop met aangenaam zacht aroma. Ook voor maken van bitterconcentraten/extracten. | U44: Target, Admiral, Phoenix | V44: Lagerbieren | X44: Mangrove Bohemian Lager M84 | Y44: 80 | Z44: 107.5 | AA44: 12.5 | AB44: Pils en Co, Flinke flocculatie, zeer bottelgeschikt. Lage alcohol tolerantie. | AC44: k
A45: Malheur 10 | B45: 20 | C45: 1082.984453 | D45: 10.1 | E45: 11 | F45: 33 | H45: Whisky Malt | I45: 79 | J45: 5 | K45: 100 | X45: Mangrove Britisch Ale M07 | Y45: 80 | Z45: 107.5 | AA45: 19 | AB45: Britse Ales, inclusief zwaardere bieren, als bottelgist zeer goed, alcohol tolerantie eerder hoog. | AC45: k
A46: Mousel premium pils | B46: 11.4 | C46: 1045.861755 | D46: 4.8 | E46: 3 | F46: 28 | R46: Hieronder tijdelijke grilletjes | T46: Om op BRWPlanner met 1 regel te kunnen werken bij gelijkmatig gebruik | X46: Mangrove Burton Union M79 | Y46: 78 | Z46: 107.5 | AA46: 20 | AB46: Britse, droge Ales, eerder hoge flocculatie, bottelen: goede plakgist, matig goede alc. Tolerantie. | AC46: k
A47: Newcastle Brown Ale | B47: 10.9 | C47: 1043.772832 | D47: 5 | E47: 24 | F47: 50 | R47: CascaCitra | S47: 11.5 | T47: Mengsel 50% Citra, 50% Cascade bellen | V47: citra IPA recepten | X47: Mangrove UK Dark Ale M03 | Y47: 75 | Z47: 107.5 | AA47: 20 | AB47: Ook Newcastle dark Ale genoemd, volmondig bier. Alc. Tolerantie, flocculatie en als bottelgist matig, | AC47: k
A48: Oerbier | B48: 15.8 | C48: 1064.568039 | D48: 7.4 | E48: 76 | F48: 26 | R48: AmarilCascaCitra | S48: 10 | T48: Mengsel 1/3 Citra, 1/3 Cascade, 1/3 Amarillo bellen | V48: citra IPA recepten | X48: Mangrove US West Coast M44 | Y48: 80 | Z48: 107.5 | AA48: 21 | AB48: American Ales, IPA's, Pale ales… hoge flocculatie, matig als bottelgist. | AC48: k
A49: Oktoberfest Märzen (Spat) | B49: 13.5 | C49: 1054.716552 | D49: 5.7 | E49: 32 | F49: 22 | R49: Sorachi Ace | S49: 12.4 | X49: Mangrove Workhorse beer M10 | Y49: 85 | Z49: 107.5 | AA49: 15…32 | AB49: Alle soorten bieren inclusief fruibieren, flinke doorgister, flocculatie en als bottelgist matig. | AC49: k
A50: Paulaner Salvator Dobbelbock | B50: 17.4 | C50: 1071.517872 | D50: 7.5 | E50: 60 | F50: 30 | X50: Mangrove reserve | AC50: k
A51: Pilsner Urquell | B51: 11.9 | C51: 1047.958083 | D51: 5 | E51: 6 | F51: 40 | X51: 2) VLOEIBARE GISTEN
A52: Pinkus Hefe Weizen | B52: 12.3 | C52: 1049.640503 | D52: 5.2 | E52: 9 | F52: 18 | X52: Opkweek Brigand (FL) | Y52: 82 | Z52: 107.5 | AA52: 20 | AB52: Hard, droog | AC52: v
A53: Rodenbach | B53: 11.9 | C53: 1047.958083 | D53: 4.8 | E53: 60 | F53: 14 | X53: Opkweek Duvel (FL.) | Y53: 79 | Z53: 107.5 | AA53: 20 | AB53: Zeer geschikt vr hergisting (plakt) | AC53: v
A54: Rodenbach Grand Cru | B54: 15.8 | C54: 1064.568039 | D54: 6.6 | E54: 60 | F54: 14 | X54: Opkweek Hopus (FL) | Y54: 82 | Z54: 107.5 | AA54: 21 | AB54: Fruitige gist | AC54: v
A55: Saint-Arnould réserve | B55: 15.1 | C55: 1061.552561 | D55: 6.4 | E55: 35 | F55: 25 | X55: Opkweek Orval (FL) | Y55: 83 | Z55: 107.5 | AA55: 20 | AB55: Ver doorgistend (bevat Brettanomyces!) | AC55: v
A56: Saint-Silvestre 3m | B56: 19 | C56: 1078.548571 | D56: 8.5 | E56: 6 | F56: 27 | X56: Opkweek Rochefort10 (FL) | Y56: 82 | Z56: 107.5 | AA56: 21 | AB56: Zacht en aangenaam | AC56: v
X57: Opkweek Westmalle(FL) | Y57: 82 | Z57: 107.5 | AA57: 21 | AB57: Gekend, krachtig, gisting kan fruitig ruiken. | AC57: v
X58: Opkweek Hopus (FL) | Y58: 82 | Z58: 107.5 | AA58: 21 | AB58: Fruitige gist | AC58: v
X59: Opkweek Chimay (FL) | Y59: 82 | Z59: 107.5 | AA59: 21 | AB59: Weizenachtig, zwavelig | AC59: v
X60: Schuine Buis Gevallen Engel | Y60: 82 | Z60: 107.5 | AA60: 23 | AB60: Voor Duvel hoofdgist | AC60: v
X61: Schuine Buis Hapkin | Y61: 82.5 | Z61: 107.5 | AA61: 23 | AB61: Hapkin like, iets volmondiger dan Duvel | AC61: v
X62: Schuine Buis Kabouter | Y62: 82.5 | Z62: 107.5 | AA62: 24 | AB62: Voor Achouffe-like, kruidig | AC62: v
X63: 1007 German Ale | Y63: 75 | Z63: 107 | AA63: 16 | AB63: Droog en verfrissend, complex & zacht | AC63: v
X64: 1010 American Wheat | Y64: 76 | Z64: 107 | AA64: 19 | AB64: Droog, verfrissend en lichtzurig | AC64: v
X65: 1028 London Ale | Y65: 75 | Z65: 107 | AA65: 18 | AB65: Rijk, droge afdronk. Dorstlessend & fruitig | AC65: v
X66: 1056 American Ale | Y66: 75 | Z66: 107 | AA66: 18 | AB66: Droog met zachte afdronk, evenwichtig | AC66: v
X67: 1084 Irish Ale (Guinness) | Y67: 73 | Z67: 107 | AA67: 19 | AB67: Licht moutig, fruitig, beetje diacetyl. | AC67: v
X68: 1098 Britisch Ale | Y68: 74 | Z68: 107 | AA68: 20 | AB68: Droog, verfrissend, lichtzurig, fruitig, evenwichtig | AC68: v
X69: 1099 Whitbread Ale | Y69: 70 | Z69: 106.5 | AA69: 21 | AB69: Zachtmoutig, lichtfruitig vergistprofiel. Minder zurig en droog dan de 1098 | AC69: v
X70: 1187 Ringwood Ale | Y70: 70 | Z70: 106.5 | AA70: 21 | AB70: Fruitesters, moutig, hoge uitvlokking, Diacetylrust nodig. | AC70: v
X71: 1214 Belgian Abbey | Y71: 80 | Z71: 107.5 | AA71: 21 | AB71: Esterig, fruitig, droog zurige afdronk / Chimay | AC71: v
X72: 1272 All American Ale | Y72: 74 | Z72: 107.5 | AA72: 19 | AB72: Fruitig, vlokt meer uit dan 1056, zurige afdronk | AC72: v
X73: 1275 Thames valey Ale | Y73: 74 | Z73: 107.5 | AA73: 19 | AB73: Voor Britse Bitters | AC73: v
X74: 1318 London Ale III | Y74: 73 | Z74: 107 | AA74: 21 | AB74: Tradirionele engelse ale, moutig en hoppig | AC74: v
X75: 1335 Britisch Ale II | Y75: 75 | Z75: 107.5 | AA75: 21 | AB75: Britse & Canadese ales, Moutig | AC75: v
X76: 1338 European Ale | Y76: 69 | Z76: 106.5 | AA76: 20 | AB76: Munchener ale, zeer moutig, dicht stevig schuim | AC76: v
X77: 1388 Belgian Strong Ale | Y77: 79 | Z77: 107.5 | AA77: 20 | AB77: Fruitig aroma en palet droog zurige afdronk / Duvel. | AC77: v
X78: 1728 Scottish Ale | Y78: 71 | Z78: 107 | AA78: 18 | AB78: Mc Ewans | AC78: v
X79: 1762 Belgian Abbey II | Y79: 81 | Z79: 107.5 | AA79: 22 | AB79: Gist voor hoogSG, verwarmend door de ethanol. Lichtfruitig & droog (Rochefort) | AC79: v
X80: 1968 London ESB Ale | Y80: 69 | Z80: 106.5 | AA80: 20 | AB80: Zeer moutig, evenwichtig fruitig, zeer hoge uitvlokking voor Cask conditioned ales | AC80: v
X81: 2000 Budvar Lager | Y81: 73 | Z81: 107 | AA81: 11 | AB81: Moutig, licht fruitige lager | AC81: v
X82: 2001 Pilsner Urquell Lager | Y82: 73 | Z82: 107 | AA82: 11 | AB82: DE PILS! Mild fruit & bloemenaroma. | AC82: v
X83: 2007 Pilsen Lager | Y83: 73 | Z83: 107 | AA83: 11 | AB83: Zacht moutig palet. Droog/verfrissend (Budweiser) | AC83: v
X84: 2035 American Lager | Y84: 77 | Z84: 107.5 | AA84: 12 | AB84: Sterk, complex en aromatisch | AC84: v
X85: 2042 Danish Lager (Carlsberg) | Y85: 75 | Z85: 107.5 | AA85: 11 | AB85: Rijk, Dortmundstijl verfrissend droge afdronk. | AC85: v
X86: 2112 Californian Lager | Y86: 69 | Z86: 106.5 | AA86: 17 | AB86: Moutige en kristalhelder bier | AC86: v
X87: 2124 Bohemian Lager | Y87: 71 | Z87: 107 | AA87: 11 | AB87: Clean en moutig. / Weihenstephan 34/70 | AC87: v
X88: 2206 Bavarian Lager | Y88: 75 | Z88: 107.5 | AA88: 11 | AB88: Gebruikt in veel Duitse brouwerijen, Weihenstephan 206. | AC88: v
X89: 2278 Czech Pils | Y89: 72 | Z89: 107.5 | AA89: 11 | AB89: Droog en moutige afdronk / Pilsner Urquel-D | AC89: v
X90: 2308 Munich Lager | Y90: 75 | Z90: 107.5 | AA90: 11 | AB90: Zeer aangenaam zacht goede stevigheid en vol van smaak | AC90: v
X91: 3056 Bavarian Wheat Blend | Y91: 75 | Z91: 107.5 | AA91: 21 | AB91: Voor zachte, esterige en fenolische Weizenbieren | AC91: v
X92: 3068 Weihenstephan Weizen | Y92: 76 | Z92: 107.5 | AA92: 22 | AB92: Unieke bovengist: kruidige WEIZEN, karakter maakt rijk met kruidnagel vanille en banaan. | AC92: v
X93: 3333 German Wheat | Y93: 74 | Z93: 107.5 | AA93: 22 | AB93: Subtiel smaakprofiel voor een tarwebiergist met scherpzurige frisheid fruitig kersachtig palet. | AC93: v
X94: 3463 Forbidden Fruit Yeast | Y94: 77 | Z94: 107.5 | AA94: 21 | AB94: Fenolisch profiel met een achtergrond van fruitigheid. / Verboden Vrucht | AC94: v
X95: 3522 Belgian Ardennes | Y95: 82.5 | Z95: 107.5 | AA95: 24 | AB95: Fenolen zorgen voor een zachtfruitigheid en een complexe kruidigheid / Achouffe | AC95: v
X96: 3538 Leuven Pale Ale | Y96: 80 | Z96: 107.5 | AA96: 23 | AB96: Licht fenolig en kruidig aromatisch karakter. / Corsendonck Bock | AC96: v
X97: 3638 Bavarian Wheat | Y97: 75 | Z97: 107.5 | AA97: 22 | AB97: Evenwicht tussen banaan en kauwgom - esters o.a. van litchee appel, pruim. Kruidnagel. / Weihenstephan 175 | AC97: v
X98: 3655 Schelde Ale | Y98: 79 | Z98: 107.5 | AA98: 20 | AB98: Een fruitig aroma. / Bolleke De Koninck. | AC98: v
X99: 3711 French Saison | Y99: 82 | Z99: 107.5 | AA99: 20..30 | AB99: Zeer droog kruidig en licht zurig profiel met esterig aroma. Rijk mondgevoel | AC99: v
X100: 3724 Belgian Saison | Y100: 84 | Z100: 107.5 | AA100: 21..29 | AB100: Zeer droog kruidig en licht zurig profiel met esterig aroma. / Saison Dupont / trage vergisting!! | AC100: v
X101: 3725 Biere de Garde | Y101: 78 | Z101: 107.5 | AA101: z.spec | AB101: Laag à gemiddelde esterproductie, lichte kruidigheid. | AC101: v
X102: 3763 Roeselare Blend | Y102: 78 | Z102: 107.5 | AA102: 20..30 | AB102: Vlaams oud bruin à la Rodenbach, moet lang rijpen, tot 18 maand | AC102: v
X103: 3787 Trappist High Gravity | Y103: 79 | Z103: 107.5 | AA103: 21 | AB103: Droog, rijk esterig en fenolig profiel / moutig palet. / Westmalle | AC103: v
X104: 3942 Belgian Witbier | Y104: 74 | Z104: 107.5 | AA104: 20 | AB104: Esterig en fenolisch, appels & pruimen in de neus. Droog. | AC104: v
X105: 3944 Belgian Witbier (Celis) | Y105: 74 | Z105: 107.5 | AA105: 21 | AB105: Zurig en licht fenolisch karakter / Hoegaarden / Celis White | AC105: v
X106: 5112 Brettan. Bruxellensis | Y106: 85 | Z106: 107.5 | AA106: 22 | AB106: Produceert klassieke lambic karakteristieken zoals zuur en zweterig paardehaar. / Lambiekcultuur | AC106: v
X107: Champagnegisten | Y107: 45 | Z107: 107.5 | AA107: 18 | AB107: TE troebel als bottelgist, wel OK om zwaar bier na hoofdgisting dmv suiker op te krikken tot 14 vol%. | AC107: k
Q151: Tip: pas jaarlijks de alfazuren van de hop aan, zodra je de nieuwe hopsoorten binnen hebt

Sheet Origineel recept
A1: Saison | C1: < Naam Bier | F1: Beslagdikte in L/kg > | G1: 3.6 | H1: =IF(mashfactor>4.5,0,(5-mashfactor)/2.2) -> 0.6363636364 | J1: Brouwdatum > | S1: EBC | T1: R | U1: G | V1: B | W1: A | Y1: EBC | AA1: Info over de gekozen gist: Naam > | AB1: =HoofdGist -> Danstar Belle Saison
A2: http://www.hobbybrouwen.nl/forum/index.php/topic,12765.msg164212.html#msg164212 | C2: < Type bier | F2: "Extract Efficiëntie" > | G2: 0.77 | J2: Botteldatum > | S2: 0 | T2: 255 | U2: 255 | V2: 255 | W2: 0 | Y2: =$F$26 -> 12.41949116 | AA2: =G3 -> Belgische Saisongist
A3: Gewenste liters bier > | B3: 21 | C3: Gist >> | D3: Danstar Belle Saison | G3: =VLOOKUP(HoofdGist,'Info-Tabellen'!$X:$AC,5,0) -> Belgische Saisongist | S3: 1 | T3: 247 | U3: 249 | V3: 180 | W3: 45
A4: Vast verlies installatie > | B4: 1 | F4: ketelinvloed (vaste parameter) > | G4: 99.5 | J4: Totale kooktijd > | K4: 70 | L4: =IF(Aardbier="D",-0.5,IF(Aardbier="M",-0.3,IF(Aardbier=1,-0.8,2.5))) -> -0.5 | S4: 2 | T4: 245 | U4: 248 | V4: 146 | W4: 61 | Y4: R | AA4: Info over de bottelgist: Naam > | AB4: =K53 -> FermentisSafbrew F2
A5: Kies een Maischprofiel > | B5: D | D5: eiwitrust J/N ? > | E5: N | G5: % verkoken/uur> | H5: 19 | I5: =VLOOKUP(HoofdGist,'Info-Tabellen'!$X:$AB,2,0) -> 91 | J5: =SUM($D$8:$D$18) -> 4.5185 | K5: =IF(Eiwitrust="J",10,0) -> 0 | L5: =(totplato-VSPrestextract)/(2.0665-0.010665*(totplato)) -> 4.817447754 | S5: 3 | T5: 248 | U5: 249 | V5: 114 | W5: 75 | Y5: =LOOKUP($Y$2,$S$2:$S$48,T2:T48) -> 212 | AA5: =VLOOKUP(bottelgist,'Info-Tabellen'!$X:$AB,5,0) -> Speciale Bottelgist, flinke sedimentatie.
A6: Geef opslagtemperatuur mout > | B6: 14 | F6: na beslagcorrectie op Extract Effic.> | G6: =IF(mashfactor<3.66,$G$2-((mashfactor)/1000)+0.00666,$G$2-((mashfactor)/20)+0.175) -> 0.77306 | I6: =IF(moutkilos=0,"",IF(Aardbier=1,moutkilos*1.6*($B$30-mouttemp)/(mashwater*4.18),moutkilos*1.6*($B$29-mouttemp)/(mashwater*4.18))) -> 5.003596335 | K6: â te verwachten na koken â | O6: =VLOOKUP(HoofdGist,'Info-Tabellen'!$X:$AB,3,0) -> 107.5 | P6: ter info | S6: 4 | T6: 248 | U6: 247 | V6: 83 | W6: 90 | AE6: 123456789
A7: Grondstoffen | B7: Opbrengst | C7: EBC-kleur | D7: kg â | E7: °PLATO | F7: EBC | G7: %Gew. | H7: %Stort | I7: FG | J7: =SUM($E$8:$E$18) -> 12.52565423 | K7: =(1+($J$7/(258.6-0.87955*$J$7)))*1000 -> 1050.591725 | L7: =IF(ISNUMBER($J$7),$J$7*1.035,"") -> 12.96405213 | N7: gist factor | O7: SVG | P7: LoviBond | Q7: EBC | S7: 5 | T7: 245 | U7: 248 | V7: 48 | W7: 121 | Y7: G
A8: Pilsmout 3 | B8: =VLOOKUP(A8,'Info-Tabellen'!$H:$K,2,0) -> 80.07 | C8: =VLOOKUP(A8,'Info-Tabellen'!$H:$K,3,0) -> 3 | D8: =3/16*21 -> 3.9375 | E8: =IF(Gewenste_liters=0,"0",IF(D8=0," ",(B8*D8/(Gewenste_liters+hopverlies))*effic)) -> 10.89136539 | F8: =IF(Gewenste_liters=0,"0",IF(D8=0," ",1.8*(Q8)^0.69)) -> 4.962770114 | G8: =IF(D8=""," ",(D8*100/Totaalkg)) -> 87.14175058 | H8: =IF(E8=" "," ",(E8*100/totplato)) -> 86.95246721 | I8: =IF(O8=0,"",E8-(E8*O8/100)) -> 0.9950747469 | J8: te verwachten uit suikers en | N8: =IF(D8=0,0,VLOOKUP(A8,'Info-Tabellen'!$H:$K,4,0)) -> 100 | O8: =IF(N8=0,0,(SVGopmout*N8/100)-ATNfactor-Aftrokmaische) -> 90.86363636 | P8: =IF(C8=0,0,C8*0.3748+0.6) -> 1.7244 | Q8: =D8*C8/Gewenste_liters*effic*10 -> 4.3484625 | S8: 6 | T8: 245 | U8: 244 | V8: 18 | W8: 137 | Y8: =LOOKUP($Y$2,$S$2:$S$48,U2:U48) -> 184
A9: Munich mout 15 | B9: =VLOOKUP(A9,'Info-Tabellen'!$H:$J,2,0) -> 80.07 | C9: =VLOOKUP(A9,'Info-Tabellen'!$H:$J,3,0) -> 15 | D9: =0.225/21*Gewenste_liters -> 0.225 | E9: =IF(Gewenste_liters=0,"0",IF(D9=0," ",(B9*D9/(Gewenste_liters+hopverlies))*effic)) -> 0.6223637365 | F9: 2.090822705 | G9: 4.979528605 | H9: 4.968712412 | I9: 0.05686141411 | J9: â extracten â | N9: =IF(D9=0,0,VLOOKUP(A9,'Info-Tabellen'!$H:$K,4,0)) -> 100 | O9: 90.86363636 | P9: =IF(C9=0,0,C9*0.3748+0.6) -> 6.222 | Q9: =D9*C9/Gewenste_liters*effic*10 -> 1.242417857 | S9: 7 | T9: 238 | U9: 233 | V9: 22 | W9: 135 | AA9: Info over de gekozen hopsoorten: (A) = aroma (B) = Bitter (U) = Universeel
A10: Tarwemout | B10: =VLOOKUP(A10,'Info-Tabellen'!$H:$J,2,0) -> 83.5 | C10: =VLOOKUP(A10,'Info-Tabellen'!$H:$J,3,0) -> 2.7 | D10: =0.305/21*Gewenste_liters -> 0.305 | E10: 0.8797884328 | F10: 0.7899801664 | G10: 6.750027664 | H10: 7.023892058 | I10: 0.08038067045 | J10: =SUM($E$19:$E$22) -> 0 | K10: =(1+($J$10/(258.6-0.87955*$J$10)))*1000 -> 1000 | L10: =IF(ISNUMBER($J$10),$J$10,"") -> 0 | N10: =IF(D10=0,0,VLOOKUP(A10,'Info-Tabellen'!$H:$K,4,0)) -> 100 | O10: 90.86363636 | P10: 1.61196 | Q10: 0.3031499571 | S10: 8 | T10: 230 | U10: 225 | V10: 24 | W10: 160 | Y10: B | AA10: =_hop1 -> Styrian Golding (A)
A11: CaraMunich (Cara 120) | B11: =VLOOKUP(A11,'Info-Tabellen'!$H:$J,2,0) -> 75 | C11: =VLOOKUP(A11,'Info-Tabellen'!$H:$J,3,0) -> 120 | D11: =0.051/21*Gewenste_liters -> 0.051 | E11: 0.1321366744 | F11: 3.152584839 | G11: 1.12869315 | H11: 1.054928325 | I11: 0.02650181192 | K11: â te verwachten totaal â | N11: =IF(D11=0,0,VLOOKUP(A11,'Info-Tabellen'!$H:$K,4,0)) -> 88 | O11: 79.94363636 | P11: 45.576 | Q11: 2.252917714 | S11: 9 | T11: 229 | U11: 214 | V11: 30 | W11: 163 | Y11: =LOOKUP($Y$2,$S$2:$S$48,V2:V48) -> 39 | AA11: =VLOOKUP(_hop1,'Info-Tabellen'!$R:$V,3,0) -> Delicaat, iets pikant en grasachtig/bloemig. Zeer populair vanwege karakteristieke aroma en gemiddelde alpha waarden
A12: - - Kies mout of graan - - | B12: =VLOOKUP(A12,'Info-Tabellen'!$H:$J,2,0) -> 0 | C12: =VLOOKUP(A12,'Info-Tabellen'!$H:$J,3,0) -> 0 | J12: =IF(ISNUMBER(totplato),totplato,"") -> 12.52565423 | K12: =(1+(totplato/(258.6-0.87955*totplato)))*1000 -> 1050.591725 | L12: =IF(ISNUMBER($J$12),$L$7+$L$10,"") -> 12.96405213 | N12: =IF(D12=0,0,VLOOKUP(A12,'Info-Tabellen'!$H:$K,4,0)) -> 0 | O12: 0 | P12: 0 | Q12: 0 | S12: 10 | T12: 224 | U12: 204 | V12: 32 | W12: 165
A13: - - Kies mout of graan - - | B13: =VLOOKUP(A13,'Info-Tabellen'!$H:$J,2,0) -> 0 | C13: =VLOOKUP(A13,'Info-Tabellen'!$H:$J,3,0) -> 0 | K13: â voorspelling eind SG | N13: =IF(D13=0,0,VLOOKUP(A13,'Info-Tabellen'!$H:$K,4,0)) -> 0 | O13: 0 | P13: 0 | Q13: 0 | S13: 11 | T13: 218 | U13: 196 | V13: 41 | W13: 168 | Y13: A
A14: - - Kies mout of graan - - | B14: =VLOOKUP(A14,'Info-Tabellen'!$H:$J,2,0) -> 0 | C14: =VLOOKUP(A14,'Info-Tabellen'!$H:$J,3,0) -> 0 | J14: =voorsp_eindplato -> 1.158818643 | K14: =voorsp_eindSG -> 1003.989866 | L14: - - - - | N14: =IF(D14=0,0,VLOOKUP(A14,'Info-Tabellen'!$H:$K,4,0)) -> 0 | O14: 0 | P14: 0 | Q14: 0 | S14: 12 | T14: 212 | U14: 184 | V14: 39 | W14: 170 | Y14: =LOOKUP($Y$2,$S$2:$S$48,W2:W48) -> 170 | AA14: =_hop2 -> Styrian Golding (A)
A15: - - Kies mout of graan - - | B15: =VLOOKUP(A15,'Info-Tabellen'!$H:$J,2,0) -> 0 | C15: =VLOOKUP(A15,'Info-Tabellen'!$H:$J,3,0) -> 0 | J15: =SUM(I8:I18) -> 1.158818643 | K15: <Gr FG Skr> | L15: =SUM(I19:I23) -> 0 | N15: =IF(D15=0,0,VLOOKUP(A15,'Info-Tabellen'!$H:$K,4,0)) -> 0 | O15: 0 | P15: 0 | Q15: 0 | S15: 13 | T15: 208 | U15: 176 | V15: 46 | W15: 173 | AA15: =VLOOKUP(_hop2,'Info-Tabellen'!$R:$V,3,0) -> Delicaat, iets pikant en grasachtig/bloemig. Zeer populair vanwege karakteristieke aroma en gemiddelde alpha waarden
A16: - - Kies mout of graan - - | B16: =VLOOKUP(A16,'Info-Tabellen'!$H:$J,2,0) -> 0 | C16: =VLOOKUP(A16,'Info-Tabellen'!$H:$J,3,0) -> 0 | K16: Nodige Gist: | L16: =VLOOKUP(HoofdGist,'Info-Tabellen'!$X:$AC,6,0) -> k | N16: =IF(D16=0,0,VLOOKUP(A16,'Info-Tabellen'!$H:$K,4,0)) -> 0 | O16: 0 | P16: 0 | Q16: 0 | S16: 14 | T16: 202 | U16: 167 | V16: 52 | W16: 175 | Y16: RGB_set
A17: - - Kies mout of graan - - | B17: =VLOOKUP(A17,'Info-Tabellen'!$H:$J,2,0) -> 0 | C17: =VLOOKUP(A17,'Info-Tabellen'!$H:$J,3,0) -> 0 | G17: =IF(D17=""," ",(D17*100/Totaalkg)) ->  | H17: =IF(E17=" "," ",(E17*100/totplato)) ->  | J17: =IF(L16="k",INT(Gewenste_liters/20*mashplato),"starter in stappen opkweken:") -> 13 | N17: =IF(D17=0,0,VLOOKUP(A17,'Info-Tabellen'!$H:$K,4,0)) -> 0 | O17: 0 | P17: 0 | Q17: 0 | S17: 15 | T17: 194 | U17: 156 | V17: 54 | W17: 178 | Y17: =SetRGB(Y5,Y8,Y11,Y14) -> 2603220
A18: CaraMunich (Cara 120) | B18: =VLOOKUP(A18,'Info-Tabellen'!$H:$J,2,0) -> 75 | C18: =VLOOKUP(A18,'Info-Tabellen'!$H:$J,3,0) -> 120 | J18: =IF(L16="k"," vooraf te","maken") -> vooraf te | K18: =IF(L16="k","rehydrateren",(INT(160*Starter/100))*90) -> rehydrateren | L18: =IF(L16="k","in water 25°","moutextract ") -> in water 25° | N18: =IF(D18=0,0,VLOOKUP(A18,'Info-Tabellen'!$H:$K,4,0)) -> 0 | O18: 0 | P18: 45.576 | Q18: 0 | S18: 16 | T18: 190 | U18: 147 | V18: 57 | W18: 180 | AA18: =_hop3 -> Merkur (B)
A19: Kristalsuiker | B19: =VLOOKUP(A19,'Info-Tabellen'!$M:$O,2,0) -> 100 | C19: =VLOOKUP(A19,'Info-Tabellen'!$M:$O,3,0) -> 0.004500101328 | E19: =IF(Gewenste_liters=0,"0",IF(D19=0," ",(B19*D19/(Gewenste_liters+hopverlies)))) ->  | F19: =IF(Gewenste_liters=0,"0",IF(D19=0," ",B19*D19/10/Gewenste_liters*C19)) ->  | J19: =IF(L16="k","",INT(Starter*totplato/4)) ->  | K19: =IF(L16="k","","gistvoeding,") ->  | L19: =IF(L16="k","","koken in ") ->  | N19: =IF(D19=0,0,VLOOKUP(A19,'Info-Tabellen'!$M:$P,4,0)) -> 0 | O19: =IF(N19=0,0,(SVGopsuiker*N19/100)) -> 0 | P19: 0.601686638 | S19: 17 | T19: 193 | U19: 145 | V19: 59 | W19: 201 | AA19: =VLOOKUP(_hop3,'Info-Tabellen'!$R:$V,3,0) -> Nieuwe bitterhop, fijner aroma dan Magnum
A20: - - Kies suiker of extract - - | B20: =VLOOKUP(A20,'Info-Tabellen'!$M:$O,2,0) -> 0 | C20: =VLOOKUP(A20,'Info-Tabellen'!$M:$O,3,0) -> 0 | E20: =IF(Gewenste_liters=0,"0",IF(D20=0," ",(B20*D20/(Gewenste_liters+hopverlies)))) ->  | F20: =IF(Gewenste_liters=0,"0",IF(D20=0," ",B20*D20/10/Gewenste_liters*C20)) ->  | J20: =IF(L16="k","",Starter*1.05) ->  | K20: =IF(L16="k","","water =") ->  | L20: =IF(L16="k","",mashplato/2.5*Gewenste_liters/100) ->  | N20: =IF(D20=0,0,VLOOKUP(A20,'Info-Tabellen'!$M:$P,4,0)) -> 0 | O20: =IF(N20=0,0,(SVGopsuiker*N20/100)) -> 0 | P20: 0 | S20: 18 | T20: 192 | U20: 140 | V20: 61 | W20: 202
A21: - - Kies suiker of extract - - | B21: =VLOOKUP(A21,'Info-Tabellen'!$M:$O,2,0) -> 0 | C21: =VLOOKUP(A21,'Info-Tabellen'!$M:$O,3,0) -> 0 | E21: =IF(Gewenste_liters=0,"0",IF(D21=0," ",(B21*D21/(Gewenste_liters+hopverlies)))) ->  | F21: =IF(Gewenste_liters=0,"0",IF(D21=0," ",B21*D21/10/Gewenste_liters*C21)) ->  | K21: ±Nodige liters kookwort @100°Câ | N21: =IF(D21=0,0,VLOOKUP(A21,'Info-Tabellen'!$M:$P,4,0)) -> 0 | O21: =IF(N21=0,0,(SVGopsuiker*N21/100)) -> 0 | P21: 0 | S21: 19 | T21: 191 | U21: 135 | V21: 59 | W21: 204
A22: - - Kies suiker of extract - - | B22: =VLOOKUP(A22,'Info-Tabellen'!$M:$O,2,0) -> 0 | C22: =VLOOKUP(A22,'Info-Tabellen'!$M:$O,3,0) -> 0 | E22: =IF(Gewenste_liters=0,"0",IF(D22=0," ",(B22*D22/(Gewenste_liters+hopverlies)))) ->  | F22: =IF(Gewenste_liters=0,"0",IF(D22=0," ",B22*D22/10/Gewenste_liters*C22)) ->  | J22: @ 75°C > | K22: =($L$27+verlieswater)*1.03 -> 28.24640586 | L22: =($L$27+verlieswater)*1.04 -> 28.52064281 | N22: =IF(D22=0,0,VLOOKUP(A22,'Info-Tabellen'!$M:$P,4,0)) -> 0 | O22: =IF(N22=0,0,(SVGopsuiker*N22/100)) -> 0 | P22: 0 | S22: 20 | T22: 191 | U22: 130 | V22: 58 | W22: 205 | AA22: =_hop4 -> - - Kies hop - -
A23: - - Kies suiker of extract - - | B23: =VLOOKUP(A23,'Info-Tabellen'!$M:$O,2,0) -> 0 | C23: =VLOOKUP(A23,'Info-Tabellen'!$M:$O,3,0) -> 0 | E23: =IF(Gewenste_liters=0,"0",IF(D23=0," ",(B23*D23/(Gewenste_liters+hopverlies)))) ->  | F23: =IF(Gewenste_liters=0,"0",IF(D23=0," ",B23*D23/10/Gewenste_liters*C23)) ->  | K23: Totaal aantal L water brouwsel â | N23: =IF(D23=0,0,VLOOKUP(A23,'Info-Tabellen'!$M:$P,4,0)) -> 0 | O23: =IF(N23=0,0,(SVGopsuiker*N23/100)) -> 0 | P23: 0 | S23: 21 | T23: 191 | U23: 127 | V23: 56 | W23: 206 | AA23: =VLOOKUP(_hop4,'Info-Tabellen'!$R:$V,3,0) -> 0
A24: Clarimalt of Caramelkleur in gram! | B24: 100 | C24: 9000 | E24: - - - | F24: =IF(Gewenste_liters=0,"0",IF(D24=0," ",D24/Gewenste_liters*C24/1000)) ->  | G24: =IF(D24=""," ",(D24*0.1/Totaalkg)) ->  | J24: =0.1808*totplato+0.8192*voorsp_eindplato -> 3.213942518 | K24: =IF($L$10=0,1.035,$L$12/$J$12) -> 1.035 | L24: =IF((Gewenste_liters+(1.7*moutkilos)*1.2)<mashwater,mashwater+verkookwater,($K$22*1.18)+(moutkilos*0.75)) -> 36.71963392 | N24: 0 | O24: 0 | P24: 3373.8 | S24: 22 | T24: 193 | U24: 120 | V24: 56 | W24: 208
A25: Voorspellingen > > | C25: Totalen>> | D25: =SUM(D8:D23) -> 4.5185 | E25: =SUM(E8:E24) -> 12.52565423 | F25: =SUM(F8:F24) -> 10.99615782 | G25: < TOT. EBC Kleur | I25: =SUM(I8:I23) -> 1.158818643 | J25: << Voorspelling eind °Plato | S25: 23 | T25: 190 | U25: 116 | V25: 57 | W25: 209
D26: SG >> | E26: =StamwortSG -> 1050.591725 | F26: =IF(kleur=0,0,kleur+(1.22*Kooktijd/60)) -> 12.41949116 | G26: < EBC kookkleur | I26: =IF(voorsp_eindplato=0,1000,259/(259.12955-voorsp_eindplato)*1000) -> 1003.989866 | J26: << Voorspelling eind S.G. | S26: 24 | T26: 188 | U26: 112 | V26: 57 | W26: 225 | AA26: =_hop5 -> - - Kies hop - -
A27: Maischen  | G27: Voorspelling alcohol vóór bottelen ongeveer > | H27: =IF((totplato-VSPrestextract)/(2.0665-0.010665*totplato)=0,0,voorsp_eindSG/1000*VSPalcogewicht/0.794/100) -> 0.06091522323 | I27: volume | K27: Nodige wort bij 20°C > | L27: =Gewenste_liters*(1+VSPalcvol/4) -> 21.31980492 | S27: 25 | T27: 186 | U27: 106 | V27: 50 | W27: 225 | AA27: =VLOOKUP(_hop5,'Info-Tabellen'!$R:$V,3,0) -> 0
A28: Storten in > | B28: =moutkilos*mashfactor*1.02 -> 16.591932 | C28: water van | D28: =IF(moutkilos=0,55,IF(Aardbier=1,($B$30+tempverlies)*ketelinvloed/100,($B$29+tempverlies)*ketelinvloed/100)) -> 66.66857835 | E28: â bierkleur â | I28: corrigeer pH na 10' (5,4-5,8) | S28: 26 | T28: 186 | U28: 101 | V28: 51 | W28: 226
A29: =IF(Aardbier=1,"éénstaps maisch,",IF(Eiwitrust="N","Geen eiwitrust, direct naar ","1e fase, Eiwitrust")) -> Geen eiwitrust, direct naar | B29: =IF(Aardbier=1," er is",IF(Eiwitrust="J",54,$B$30)) -> 62 | C29: =IF(Aardbier=1,"dus geen ",IF(Eiwitrust="J","± 2° C","")) ->  | D29: =IF(Aardbier=1,"eiwitrust ",IF(Eiwitrust="J",K5,"")) ->  | K29: Beslagketel moet minstens een volume hebben van > | L29: =IF(moutkilos=0,"",moutkilos+mashwater) -> 21.110432 | S29: 27 | T29: 181 | U29: 100 | V29: 53 | W29: 227
A30: =IF(Aardbier=1,"éénstaps maisch ","β amylase (maltose)") -> β amylase (maltose) | B30: =IF(Aardbier=1,66,IF(Aardbier="D",62,63)) -> 62 | C30: =IF(Aardbier=1,"± 1,5°C",IF(Aardbier="D","± 1,5°C","± 2°C")) -> ± 1,5°C | D30: =IF(Aardbier=1,90,IF(Aardbier="Z",25-($K$5/2),45-($K$5/2))) -> 45 | G30: Vóór het koken moet het wort (zonder de suiker) een densiteit | S30: 28 | T30: 177 | U30: 96 | V30: 55 | W30: 227 | AA30: =_hop6 -> - - Kies hop - -
A31: =IF(Aardbier="D","Gemengde amylase ",IF(Aardbier="Z","Ga snel naar volgende stap","")) -> Gemengde amylase | B31: =IF(Aardbier="D","66,5","") -> 66,5 | C31: =IF(Aardbier="D","± 1,5°C","") -> ± 1,5°C | D31: =IF(Aardbier="D",15,"") -> 15 | G31: hebben van ± : | J31: =mashplato*($L$27+verkookwater-Vast_verlies)/$L$22 -> 10.99953174 | K31: =(1+($J$31/(258.6-0.87955*$J$31)))*1000 -> 1044.188072 | L31: =IF(ISNUMBER($J$31),$J$31*1.035,"") -> 11.38451535 | S31: 29 | T31: 168 | U31: 92 | V31: 55 | W31: 228 | AA31: =VLOOKUP(_hop6,'Info-Tabellen'!$R:$V,3,0) -> 0
A32: =IF(Aardbier=1,"","α amylase (body) ") -> α amylase (body) | B32: =IF(Aardbier=1,"",72) -> 72 | C32: =IF(Aardbier=1,"",IF(Aardbier="D","± 1,5°C","± 2°C")) -> ± 1,5°C | D32: =IF(Aardbier=1,"",IF(Aardbier="Z",30,20)) -> 20 | L32: Min.vermogen heater â | S32: 30 | T32: 165 | U32: 88 | V32: 54 | W32: 229
A33: Filterspoelen: ga naar | B33: 75..78° | D33: nodige L spoelwater > | E33: =IF(mashplato<SUM(E19:E23),Vast_verlies,IF(mashplato=0,0,totaalvolume-mashwater)) -> 20.12770192 | F33: Max.80° | G33: < Pas spoelwater aan: pH 5,2 à 5,5 | L33: =$K$22/6.5 -> 4.345600902 | S33: 31 | T33: 158 | U33: 86 | V33: 57 | W33: 229 | AA33: Noteer: FWH= First Wort Hopping = als het gefilterd wort boven 90°zit, tot net vóór koken toevoegen.
A34: STOP spoelen bij SG | B34: =259/(259.12955-C34)*1000 -> 1011.207024 | C34: =IF(mashplato<13.4,3,mashplato*mashplato/58) -> 3 | D34: =C34*1.035 -> 3.105 | G34: Kruiden / Kookadditieven | J34: aantal | K34: unit | L34: na…min. | S34: 32 | T34: 149 | U34: 81 | V34: 56 | W34: 240 | AA34: Adviezen voor de gekozen brouwzouten, kruiden, specerijen en additieven
A35: Koken: Kies Hopsoort â | B35: Type â | C35: aantal gram | D35: % alfazuur | E35: na…min | F35: =IBUâ | G35: Zinksulfaat | K35: =VLOOKUP(G35,'Info-Tabellen'!$AE:$AG,2,0) -> g | O35: water in hop â | P35: cor.tijdstip | Q35: BitterFactor | S35: 33 | T35: 142 | U35: 77 | V35: 52 | W35: 240 | AA35: =VLOOKUP(G35,'Info-Tabellen'!$AE:$AG,3,0) -> Sporenelement IN GISTSTARTER TE DOEN!, 0,5 g / hectoliter wort
A36: Styrian Golding (A) | B36: BLM | C36: =23/21*Gewenste_liters -> 23 | D36: =VLOOKUP(_hop1,'Info-Tabellen'!$R:$T,2,0) -> 3.5 | E36: =Kooktijd-1 -> 69 | F36: =IF(E36="","",IF(C36=0," ",IF(P36>Kooktijd,0,IF(B36="PELL",TANH(PI()*(Kooktijd-P36)/120)*Q36*C36*D36*10/Gewenste_liters*1.1,TANH(PI()*(Kooktijd-P36)/120)*Q36*C36*D36*10/Gewenste_liters)))) -> 0.2637477584 | G36: Biersol | K36: =VLOOKUP(G36,'Info-Tabellen'!$AE:$AG,2,0) -> ml | O36: =IF(B36="BLM",C36*0.006,C36*0.00267) -> 0.138 | P36: =IF(E36="","",IF(E36="FWH",0,IF(E36="koud",Kooktijd,E36))) -> 69 | Q36: =IF(E36="","",IF(E36="FWH",0.398*0.000125^(MaischSG/1000-1),0.398*0.000275^(MaischSG/1000-1))) -> 0.2628710558 | S36: 34 | T36: 135 | U36: 72 | V36: 48 | W36: 240 | AA36: =VLOOKUP(G36,'Info-Tabellen'!$AE:$AG,3,0) -> Kiezelsol om trub beter neer te slaan 3ml/10liter direct na koken
A37: Styrian Golding (A) | B37: BLM | C37: =30/21*Gewenste_liters -> 30 | D37: =VLOOKUP(_hop2,'Info-Tabellen'!$R:$T,2,0) -> 3.5 | E37: =Kooktijd-53 -> 17 | F37: 11.60086471 | G37: - - Kies additief - - | K37: =VLOOKUP(G37,'Info-Tabellen'!$AE:$AG,2,0) -> - | O37: 0.18 | P37: 17 | Q37: 0.2628710558 | S37: 35 | T37: 130 | U37: 70 | V37: 46 | W37: 241 | AA37: =VLOOKUP(G37,'Info-Tabellen'!$AE:$AG,3,0) -> -
A38: Merkur (B) | B38: BLM | C38: =10/21*Gewenste_liters -> 10 | D38: =VLOOKUP(_hop3,'Info-Tabellen'!$R:$T,2,0) -> 10.7 | E38: =Kooktijd-53 -> 17 | F38: 11.82183357 | G38: - - Kies additief - - | K38: =VLOOKUP(G38,'Info-Tabellen'!$AE:$AG,2,0) -> - | O38: 0.06 | P38: 17 | Q38: 0.2628710558 | S38: 36 | T38: 119 | U38: 64 | V38: 38 | W38: 241 | AA38: =VLOOKUP(G38,'Info-Tabellen'!$AE:$AG,3,0) -> -
A39: - - Kies hop - - | B39: BLM | D39: =VLOOKUP(_hop4,'Info-Tabellen'!$R:$T,2,0) -> 0 | G39: - - Kies additief - - | K39: =VLOOKUP(G39,'Info-Tabellen'!$AE:$AG,2,0) -> - | O39: 0 | S39: 37 | T39: 111 | U39: 62 | V39: 36 | W39: 241 | AA39: =VLOOKUP(G39,'Info-Tabellen'!$AE:$AG,3,0) -> -
A40: - - Kies hop - - | B40: BLM | D40: =VLOOKUP(_hop5,'Info-Tabellen'!$R:$T,2,0) -> 0 | G40: - - Kies additief - - | K40: =VLOOKUP(G40,'Info-Tabellen'!$AE:$AG,2,0) -> - | O40: 0 | S40: 38 | T40: 105 | U40: 56 | V40: 28 | W40: 242 | AA40: =VLOOKUP(G40,'Info-Tabellen'!$AE:$AG,3,0) -> -
A41: - - Kies hop - - | B41: PELL | D41: =VLOOKUP(_hop6,'Info-Tabellen'!$R:$T,2,0) -> 0 | G41: - - Kies additief - - | K41: =VLOOKUP(G41,'Info-Tabellen'!$AE:$AG,2,0) -> - | O41: 0 | S41: 39 | T41: 99 | U41: 52 | V41: 25 | W41: 242 | AA41: =VLOOKUP(G41,'Info-Tabellen'!$AE:$AG,3,0) -> -
A42: Geïsomeriseerd Extract > | B42: - - | D42: 6 | E42: (Nadien) | F42: =IF(C42=0," ",C42*D42/Gewenste_liters) ->  | G42: - - Kies additief - - | K42: =VLOOKUP(G42,'Info-Tabellen'!$AE:$AG,2,0) -> - | N42: vast verlies > | O42: =Vast_verlies -> 1 | P42: liter | S42: 40 | T42: 91 | U42: 50 | V42: 20 | W42: 242 | AA42: =VLOOKUP(G42,'Info-Tabellen'!$AE:$AG,3,0) -> -
A43: Advies: Einde Koken, pH best tussen 5,1 en 5,4. | D43: Totaal IBU >> | F43: =SUM(F36:F42) -> 23.68644604 | G43: - - Kies additief - - | K43: =VLOOKUP(G43,'Info-Tabellen'!$AE:$AG,2,0) -> - | N43: blijft achter > | O43: =SUM(O36:O42) -> 1.378 | P43: liter | S43: 41 | T43: 83 | U43: 45 | V43: 15 | W43: 243 | AA43: =VLOOKUP(G43,'Info-Tabellen'!$AE:$AG,3,0) -> -
A44: Einde koken: De gemeten pH > | C44: =VLOOKUP(HoofdGist,'Info-Tabellen'!$X:$AB,4,0) -> 22...30 | D44: < Advies Vergistings T° | H44: Toegepaste T° > | J44: â Vóór het koken (@75°C) â | N44: verkookwater > | O44: =verkookpercent/100*Kooktijd/60*$L$27 -> 4.725890091 | P44: < extra water bij te rekenen | S44: 42 | T44: 74 | U44: 41 | V44: 7 | W44: 243
A45: Indien High Gravity > > | B45: Koudwater> | D45: Spoelwater> | E45: =IF(C45="","",$E$33-$C$45) ->  | F45: Stop spoelen bij > | H45: =IF(C45="","",259/(259.12955-I45)*1000) ->  | I45: =IF(C45="","",$C$34*Gewenste_liters/(Gewenste_liters-C45)) ->  | J45: =IF(C45="","",$K$22/Gewenste_liters*(Gewenste_liters-$C$45)) ->  | K45: =IF(C45="","",259/(259.12955-L45)*1000) ->  | L45: =IF(C45="","",J31/(Gewenste_liters-$C$45)*Gewenste_liters) -> 
A46: Resultaten na Koelen  | C46: vul meting inâ | E46: â de omgerekende stamwort âæ | H46: 0 | J46: =IF(Stamplato="","",IF(Eindcijfer="","",0.1808*Stamplato+0.8192*Eindplato)) -> 3.124969556 | L46: =IF(Stamwort="","",1+(Stamplato/(258.6-0.87955*Stamplato))) -> 1.050816079 | P46: bij verliezen | S46: 43 | T46: 76 | U46: 40 | V46: 40 | W46: 243
A47: Kies een meetinstrument > | B47: S.G. | C47: =E26 -> 1050.591725 | D47: =IF(Stamwort="","SG",IF(meter="S.G.",Stamwort,IF(meter="°Plato",259/(259.12955-Stamwort)*1000,IF(meter="Brix",259/(259.12955-Stamplato)*1000)))) -> 1050.591725 | E47: =IF(Stamwort="","°Plato",IF(meter="°Plato",Stamwort,IF(meter="S.G.",(259*Stamwort/1000-259)/(Stamwort/1000-0.0089),IF(meter="Brix",Stamwort/Brixratio)))) -> 12.57882401 | G47: =IF(Stamwort="","Brix",IF(meter="Brix",Stamwort,IF(meter="°Plato",Stamwort*Brixratio,IF(meter="S.G.",Stamplato*Brixratio)))) -> 13.01908285 | I47: Overschrijf: Bekomen liters> | L47: =Gewenste_liters -> 21 | N47: verlieswater > | O47: =verkookwater+hopverlies -> 6.103890091 | P47: < som water verdamping | S47: 44 | T47: 66 | U47: 37 | V47: 36 | W47: 243
C48: NA DE HOOFDGISTING: noteer SG of °P hevelen > | D48: 1,6°P | G48: noteer de lagertemp > | I48: Heveldatum > | P48: en in hop bij 20°C | S48: 45 | T48: 63 | U48: 35 | V48: 32 | W48: 244
B49: De resultaten vóór bottelen meet ik met > | C49: HYGRO | G49: De aflezing van dit toestel is in > | H49: S.G. | K49: Het getal dat ik aflees > | L49: =voorsp_eindSG -> 1003.989866
A50: Noteer: Het uitgegist bier moet helder zijn voor een Refractometer-meting! | E50: =IF(Eindcijfer="","- -",81.92*(Stamplato-Eindplato)/(206.65-1.0665*Stamplato)) -> 4.892421094 | F50: =IF(ISNUMBER(alconalager),12-(alconalager*100/1.97),"") -> 8.859734047 | G50: =IF(Eindcijfer="","°Plato",IF(meternadien="°Plato",Eindcijfer,IF(meternadien="S.G.",(259*Eindcijfer/1000-259)/(Eindcijfer/1000-0.0089),Eindcijfer/1.03))) -> 1.038474335 | H50: =IF(Eindcijfer="","Brix",IF(meternadien="Brix",Eindcijfer,IF(meternadien="°Plato",Eindcijfer*Brixratio,IF(meternadien="S.G.",VLeindplato*Brixratio)))) -> 1.074820937 | K50: =IF(Eindcijfer="","SG",IF(meternadien="S.G.",Eindcijfer,IF(meternadien="°Plato",259/(259.12955-Eindcijfer)*1000,IF(meternadien="Brix",259/(259.12955-Eindcijfer)*1000)))) -> 1003.989866
A51: =IF(refofhyg="HYGRO","°Plato en S.G. conversie > ","Met een hygrometer is dit >") -> °Plato en S.G. conversie > | B51: =IF(EindSG="SG","°Pt",IF(refofhyg="REFRAC",(259*EindSG/1000-259)/(EindSG/1000-0.0089),VLeindplato)) -> 1.038474335 | C51: OF | D51: =IF(Stamplato="°Plato","SG",IF(VLeindplato="°Plato","SG",IF(refofhyg="HYGRO",VLeindSG,(1.001843-(0.002318474*Stamplato)-(0.000007775*Stamplato*Stamplato)-(0.000000034*Stamplato*Stamplato*Stamplato)+(0.00574*VLeindplato)+(0.00003344*VLeindplato*VLeindplato)+(0.000000086*VLeindplato*VLeindplato*VLeindplato))*1000))) -> 1003.989866 | J51: Bekomen echt brouwzaalrendement > | K51: =IF(Totaalkg=0,"",IF(Bekomenliter="","",IF(Stamwort="","",StamSG/1000*Bekomenliter*Stamplato/(Totaalkg)/100))) -> 0.6141847444
A52: Schijnbare Vergistings Graad > | B52: =IF(Stamwort="","",IF(Eindcijfer="","",((StamSG-EindSG)/(StamSG-1000)))) -> 0.9211359972 | C52: Werkelijke Vergistings Graad > | F52: =IF(Eindcijfer="","",IF(Stamplato="","",(Stamplato-Restextract)/Stamplato)) -> 0.7515690215 | G52: =IF(alcogewicht="","",IF(Eindcijfer="","",IF(Bekomenliter="","",EindSG/1000*alcogewicht/0.794/100))) -> 0.06186323928 | H52: vol. | I52: =IF(Eindcijfer="","",IF(nietvergist>6,"!!!! >",IF(nietvergist>5,"zie na: >>",""))) ->  | K52: =IF(nietvergist="","","Ev. niet vergist suiker>") -> Ev. niet vergist suiker> | L52: =IF(Stamwort="","",IF(Eindcijfer="","",IF(((Eindplato-voorsp_eindplato)*8.1-2)<0,0,(Eindplato-voorsp_eindplato)*8.1-2))) -> 0
A53: Bottelen: | B53: =IF($G$54="J",$K$54,IF(alconalager="","",IF(kleur>50,botsuikervlgskleur,botsuikervlgsalco))) -> 8.5 | D53: Temperatuur hergisting > | G53: duurtijd > | J53: gist hergisting > | K53: FermentisSafbrew F2
A54: Kies suikersoort > > | B54: Kristalsuiker | F54: Zelf bottelsuiker opgeven? > | G54: J | J54: zo ja, geef aantal g/liter> | K54: 8.5
A55: finaal g suiker/L Bottelen > | B55: =IF(Eindcijfer="","",IF(suikersoort="Kristalsuiker",adviessuiker,IF(suikersoort="Dextrose",adviessuiker/0.93,adviessuiker/0.975))) -> 8.5 | C55: Suikergift > | D55: =IF(Eindcijfer="","",IF(adviessuiker="","",suikergift*Bekomenliter)) -> 178.5 | F55: =IF(Eindcijfer="","",IF(adviessuiker-nietvergist<0,"GEEN",suikergift-nietvergist)) -> 8.5 | H55: Dan is suikergift > | I55: =IF(Eindcijfer="","",IF(adviessuiker-nietvergist<0,"",(suikergift-nietvergist)*Bekomenliter)) -> 178.5 | J55: =IF(Eindcijfer="","",IF(suikergift=corsuiker,"Suikergift blijft dezelfde: ","Indien restsuiker verder kan uitgisten:")) -> Suikergift blijft dezelfde:
A56: Gebotteld Vol.% >> | B56: =IF(ISNUMBER(alconalager),alconalager+(adviessuiker/16.5/100),"") -> 0.06701475443 | D56: Minstens houdbaar tot ± > | E56: =IF($B$56="","",IF(Botdatum="","",IF($B$56*100<5,((($B$56*100)-5)*30)+215+Botdatum,((($B$56*100)-5)*130)+215+Botdatum))) ->  | G56: TIP: Vergelijk uw finaal S.G. met labgisting > restsuikercontrole.
A57: Brouwplanner: R. Baert, Reynaert Wijn & Biergilde. | D57: versie: 7.testD | J57: Tekstbestand voor Forum: Herman H.
A58: Nota's:
A59: Wordt Hgravity gebrouwen: 40L in kookvat, nadien Montille bijvoegen, de montille: eerst 5 l in gistvat met beetje gekookt wort om te hydrateren @ 25°
A60: Voorbeeld: ik bekwam op brouwdag na bijvoegen van de 10 lier water 51,5L wort van 12,3°Pt. Ik tel daarbij dat van de suiker dus + 4,4 geeft 16,7°Pt=SG1068
A61: (In die 51,5 liter zit de pan wort waarin de suiker gekookt is en opzij staat voor brouwdag + 3 of zo toe te dienen)
N68: Voor overzichtelijkheid: Best kolommen N tot en met Y verbergen!
A70: Overzicht Wijzigingen | C70: Noteer: een testversie heeft een "test + nr" achter de versienummer
A72: Versie 6.test.6: | B72: - Er wordt ondersteld dat giststarter ALTIJD afgegoten wordt, zoals het hoort, formules daartoe aangepast.
B73: - De voorspelling voor de eindvergisting wordt per grondstofregel berekend
B74: - Allerlei kleine verbeteringen om nauwkeuriger te voorspellen.
B75: - Betere voorspelling te bekomen Stamwort in fie van beslagdikte
B76: - Betere voorspelling eindvergisting in functie van beslagdikte en Maischprofiel
B77: - Ook nieuw: kleurbalk die ongeveer een idee geeft van de voorspelde kleur.
A78: Versie 6.test 10k: | B78: - Kleurvoorspelling volledig herzien + er zat opnieuw een fout factor 10 in suikerkleuren (nov 2013)
B79: - Nog nieuwe gisten toegevoegd.
B80: - Bitterheid gecorrigeerd volgens data bekomen uit een brouwerij met
B81: zeer betrouwbare hopgegevens en metingen lijst okt 2013.
A82: Versie 7: | B82: - Nodige Densiteit vóór het koken toegevoegd in cellen J/K/L 31
B83: - er is een versie voor oudere Office software (Office 2000/2003) en voor recente (2007 tot 2013)
B84: - Giststarter of Korrelgist in de cellen J/K/L 17 tot 20 wordt getoond volgens gistkeuze
B85: - Tekstbestand maken wordt door Forumlid Herman H gemaakt!
B86: - Hopberekeningsformules gecorrigeerd voor FWH, PELL enz…
B87: - Veel nieuwe korrelgisten toegevoegd, o.a. Mangrove Jacks en Gozdawa (vanaf 7testb)
B88: - Fout in cel K40 hersteld,
B89: - Vanaf test7d: Rij inevoegd voor High Gravity Brewing
